{"text_format":"1","workbook":"xlsx","n_sheets":1,"sheets":["Development Criteria Checklist"],"not_rendered":{"charts":1,"images":2,"macros":1,"external_links":0,"defined_names":12,"comments":0,"pivot_tables":0},"unopened":[],"bounds":{"document_bytes":16777216,"sheet_cells":100000,"rows_first":2000,"rows_last":500,"rows_between":2000,"halvings":0,"cell_chars":16384,"cell_head_chars":4096},"cells_cut":0,"cells_raw":0,"read":"whole","date_system":"1900"}

{"sheet":"Development Criteria Checklist","index":0,"n_rows":669,"n_cols":38,"rows_kept":669,"cut":false,"hidden":false,"merged":[[21,31,21,37],[37,35,37,37],[42,31,42,33],[42,35,42,37],[43,31,43,33],[43,35,43,37],[2,36,2,37],[4,36,4,37],[6,36,6,37],[8,36,8,37],[10,36,10,37],[12,36,12,37],[14,36,14,37],[38,35,38,37],[39,35,39,37],[40,31,40,33],[40,35,40,37],[41,31,41,33],[41,35,41,37],[23,35,32,36]]}
[]
[]
[null,"Yes",null,null,null,null,null,null,null,null,null,null,null,null,null,null,null,null,null,null,null,null,null,null,null,null,null,null,null,null,null,null,null,null,null,"Project Name:"]
[null,"No"]
[null,"N/A",null,null,null,null,null,null,null,null,null,null,null,null,null,null,null,null,null,null,null,null,null,null,null,null,null,null,null,null,null,null,null,null,null,"Project Location:"]
[]
[null,null,null,null,null,null,null,null,null,null,null,null,null,null,null,null,null,null,null,null,null,null,null,null,null,null,null,null,null,null,null,null,null,null,null,"Contractor:"]
[]
[null,null,null,null,null,null,null,null,null,null,null,null,null,null,null,null,null,null,null,null,null,null,null,null,null,null,null,null,null,null,null,null,null,null,null,"Contractor Representative:"]
[]
[null,null,null,null,null,null,null,null,null,null,null,null,null,null,null,null,null,null,null,null,null,null,null,null,null,null,null,null,null,null,null,null,null,null,null,"Representative Phone Number:"]
[]
[null,null,null,null,null,null,null,null,null,null,null,null,null,null,null,null,null,null,null,null,null,null,null,null,null,null,null,null,null,null,null,null,null,null,null,"Representative Email:"]
[]
[null,null,null,null,null,null,null,null,null,null,null,null,null,null,null,null,null,null,null,null,null,null,null,null,null,null,null,null,null,null,null,null,null,null,null,"Base Reviewer:"]
[]
[]
[]
[]
[null,null,0]
[null,1,0,null,null,null,null,null,null,null,null,null,null,null,null,null,null,null,null,null,null,null,null,null,null,null,null,null,null,null,null,"A06 General Criteria"]
[null,null,{"$f":"IF($B$21=1,0,1)","v":0},null,null,null,null,null,null,null,null,null,null,null,null,null,null,null,null,null,null,null,null,null,null,null,null,null,null,null,null,"Comply with all applicable Unified Facilities Criteria, Air Force Corporate Facilities Standards, Tyndall AFB Installation Facilities Standards and Installation Development Plan, and other guiding documents."]
[null,null,{"$f":"IF($B$21=1,0,1)","v":0},null,null,null,null,null,null,null,null,null,null,null,null,null,null,null,null,null,null,null,null,null,null,null,null,null,null,null,null,null,null,"Compliance\n(Yes, No, N/A)","Approval\n(Yes, No, N/A)",null,null,"Approved & Completed"]
[null,null,{"$f":"IF(AL24<>\"\",0,IF($B$21=1,0,1))","v":0},null,null,null,null,null,null,null,null,null,null,null,null,null,null,null,null,null,null,null,null,null,null,null,null,null,null,null,null,"GC 1.","Comply with Architectural Barriers Act (ABA) Standards, including updated provisions for outdoor developed areas.",null,null,"                                 General Criteria and Compliance Checklist Instructions\n\nThis compliance checklist assists designers/contractors and base reviewers to meet the criteria outlined in the Tyndall AFB Landscape Master Plan. This checklist compiles all criteria found in the Landscape Master Plan: the general criteria presented in Section A and the specific site development criteria in Section C. \n\nThis checklist is a tool to demonstrate how the planning, design, and construction of Tyndall AFB's landscapes and hardscapes comply with the applicable criteria and create spaces that are sustainable, resilient, safe, and accessible and support the base's vision of becoming the Air Force's Installation of the Future.\n\nContractors must select Yes, No, or N/A to indicate compliance with the criteria related to their specific project. Tyndall AFB personnel will verify that the contractor's work adheres to the applicable requirements. In addition to following the Landscape Master Plan guidance, contractors are expected to complete all General Criteria (GC) listed in this compliance checklist.",null,{"$f":"IF(OR(AI24=\"Yes\",AI24=\"N/A\"),1,IF(AI24=\"No\",0,IF(OR(AH24=\"N/A\",AH24=\"\"),\"\",IF(AH24=\"Yes\",1,))))","v":""}]
[null,null,{"$f":"IF(AL25<>\"\",0,IF($B$21=1,0,1))","v":0},null,null,null,null,null,null,null,null,null,null,null,null,null,null,null,null,null,null,null,null,null,null,null,null,null,null,null,null,"GC 2.","Comply with antiterrorism requirements and standoff distances, as directed in UFC 4-010-01, DoD Minimum Antiterrorism Standards for Buildings.",null,null,null,null,""]
[null,null,0,null,null,null,null,null,null,null,null,null,null,null,null,null,null,null,null,null,null,null,null,null,null,null,null,null,null,null,null,"GC 3.","Comply with the detailed design requirements for road safety and traffic control specified in the Federal Highway Administration’s Manual on Uniform Traffic Control Devices (MUTCD) and the Surface Deployment and Distribution Command, Transportation Engineering Agency’s (SDDCTEA’s) Department of Defense Supplement to the National Manual on Uniform Traffic Control Devices for Streets and Highways.",null,null,null,null,""]
[null,null,0,null,null,null,null,null,null,null,null,null,null,null,null,null,null,null,null,null,null,null,null,null,null,null,null,null,null,null,null,"GC 4.","Comply with applicable UFC and Air Force Instructions (AFIs).",null,null,null,null,""]
[null,null,0,null,null,null,null,null,null,null,null,null,null,null,null,null,null,null,null,null,null,null,null,null,null,null,null,null,null,null,null,"GC 5.","Comply with AFCFS requirements.",null,null,null,null,""]
[null,null,0,null,null,null,null,null,null,null,null,null,null,null,null,null,null,null,null,null,null,null,null,null,null,null,null,null,null,null,null,"GC 6.","Comply with the Tyndall AFB IFS. ",null,null,null,null,""]
[null,null,{"$f":"IF(AL30<>\"\",0,IF($B$21=1,0,1))","v":0},null,null,null,null,null,null,null,null,null,null,null,null,null,null,null,null,null,null,null,null,null,null,null,null,null,null,null,null,"GC 7.","Coordinate with Tyndall AFB 325th Civil Engineer Squadron for specific requirements of the U.S. Fish and Wildlife Service, Bird/Wildlife Aircraft Strike Hazard (BASH) Team, environmental regulations, and maintenance guidelines.",null,null,null,null,""]
[null,null,0,null,null,null,null,null,null,null,null,null,null,null,null,null,null,null,null,null,null,null,null,null,null,null,null,null,null,null,null,"GC 8.","Coordinate with Tyndall AFB Security Forces.",null,null,null,null,""]
[null,null,0,null,null,null,null,null,null,null,null,null,null,null,null,null,null,null,null,null,null,null,null,null,null,null,null,null,null,null,null,"GC 9.","Comply with required state and local codes and ordinances. ",null,null,null,null,""]
[null,null,0,null,null,null,null,null,null,null,null,null,null,null,null,null,null,null,null,null,null,null,null,null,null,null,null,null,null,null,null,"GC 10.","Comply with the specific requirements outlined in Sections B and C of the Tyndall AFB Landscape Master Plan. ",null,null,null,null,""]
[null,null,{"$f":"IF($B$21=1,0,1)","v":0}]
[null,null,0]
[null,null,0]
[null,null,0]
[null,null,{"$f":"IF($B$37=1,0,1)","v":1},null,null,null,null,null,null,null,null,null,null,null,null,null,null,null,null,null,null,null,null,null,null,null,null,null,null,null,null,null,null,null,"Yes/No","Reference to the Landscape Master Plan (exhibit, page)"]
[null,null,{"$f":"IF($B$37=1,0,1)","v":1},null,null,null,null,null,null,null,null,null,null,null,null,null,null,null,null,null,null,null,null,null,null,null,null,null,null,null,null,"Is your site along the Flightline side of the multi-modal spine?",null,null,null,"Exhibit B02-5, Page B02-7; Exhibit C-01-11, Page C-01-11; Exhibit C-01-12, Page C-01-12"]
[null,null,1,null,null,null,null,null,null,null,null,null,null,null,null,null,null,null,null,null,null,null,null,null,null,null,null,null,null,null,null,"Is your site along the Support side of the multi-modal spine?",null,null,null,"Exhibit B02-5, Page B02-7; Exhibit C-01-11, Page C-01-11; Exhibit C-01-12, Page C-01-12"]
[null,null,1,null,null,null,null,null,null,null,null,null,null,null,null,null,null,null,null,null,null,null,null,null,null,null,null,null,null,null,null,"Is your site located within the coastal zone?",null,null,null,"Exhibit B05-02, Page B05-4"]
[null,null,1,null,null,null,null,null,null,null,null,null,null,null,null,null,null,null,null,null,null,null,null,null,null,null,null,null,null,null,null,"Is your site located near one of the main entry control facilities?",null,null,null,"Exhibit C01-9, Page C01-10"]
[null,null,1,null,null,null,null,null,null,null,null,null,null,null,null,null,null,null,null,null,null,null,null,null,null,null,null,null,null,null,null,"Is your site located within or facing a community commons?"]
[null,null,1,null,null,null,null,null,null,null,null,null,null,null,null,null,null,null,null,null,null,null,null,null,null,null,null,null,null,null,null,"Is your site located within one of the Coordinated Parking Areas A through I?",null,null,null,"Exhibit C03-1, Page C03-2"]
[null,null,1]
[null,null,1]
[null,null,1]
[null,null,0,null,null,null,null,null,null,null,null,null,null,null,null,null,null,null,null,null,null,null,null,null,null,null,null,null,null,null,null,"C01 Site Design Criteria",null,"Contractor \nCompliance","Reviewer \nApproval","Contractor Comments","Reviewer Comments","Completed/\nAccepted"]
[null,null,{"$f":"IF($B$48=1,0,1)","v":1},null,null,null,null,null,null,null,null,null,null,null,null,null,null,null,null,null,null,null,null,null,null,null,null,null,null,null,null,"C01.4.1 Site Design Criteria (SDC)"]
[null,null,{"$f":"IF(AL50<>\"\",0,IF($B$48=1,0,1))","v":1},null,null,null,null,null,null,null,null,null,null,null,null,null,null,null,null,null,null,null,null,null,null,null,null,null,null,null,null,"C01.4.2 Typical Site Layout Typology",null,"Compliance\n(Yes, No, N/A)","Approval\n(Yes, No, N/A)","Comments"]
[null,null,{"$f":"IF(AL51<>\"\",0,IF($B$48=1,0,1))","v":1},null,null,null,null,null,null,null,null,null,null,null,null,null,null,null,null,null,null,null,null,null,null,null,null,null,null,null,null,"SDC 1.","Locate service areas and utility infrastructure to the side or rear of building, relative to streets and the primary building entrance.",null,null,null,null,{"$f":"IF(OR(AI51=\"Yes\",AI51=\"N/A\"),1,IF(AI51=\"No\",0,IF(OR(AH51=\"N/A\",AH51=\"\"),\"\",IF(AH51=\"Yes\",1,))))","v":""}]
[null,null,1,null,null,null,null,null,null,null,null,null,null,null,null,null,null,null,null,null,null,null,null,null,null,null,null,null,null,null,null,"SDC 2.","For sites along a shared-use path, orient the building so the primary façade addresses the path and secondary façade faces the most primary street.",null,null,null,null,""]
[null,null,1,null,null,null,null,null,null,null,null,null,null,null,null,null,null,null,null,null,null,null,null,null,null,null,null,null,null,null,null,"SDC 3.","For sites not along a shared-use path, orient the building so the primary façade addresses the most primary street and secondary façade faces a parking area to rear of site.",null,null,null,null,""]
[null,null,1,null,null,null,null,null,null,null,null,null,null,null,null,null,null,null,null,null,null,null,null,null,null,null,null,null,null,null,null,"SDC 4.","Provide building entrances with access to both street side and parking side of structure.",null,null,null,null,""]
[null,null,1,null,null,null,null,null,null,null,null,null,null,null,null,null,null,null,null,null,null,null,null,null,null,null,null,null,null,null,null,"SDC 5.","Provide site sidewalks and shared-use paths that connect to surrounding pedestrian/bike systems.",null,null,null,null,""]
[null,null,1,null,null,null,null,null,null,null,null,null,null,null,null,null,null,null,null,null,null,null,null,null,null,null,null,null,null,null,null,"SDC 6.","Configure parking so areas are navigable by local emergency response apparatus. Ensure fire department access complies with UFC 3-600-01/NFPA. ",null,null,null,null,""]
[null,null,1,null,null,null,null,null,null,null,null,null,null,null,null,null,null,null,null,null,null,null,null,null,null,null,null,null,null,null,null,"SDC 7.","Design landscaping, fencing, bollard placement, and similar obstructions so they are located a minimum of 24-inches from the vertical centerline of fire hydrants and not directly in front of any outlet (UFC 3-600-01).",null,null,null,null,""]
[null,null,1,null,null,null,null,null,null,null,null,null,null,null,null,null,null,null,null,null,null,null,null,null,null,null,null,null,null,null,null,"C01.4.3 Antiterrorism Strategies",null,"Compliance\n(Yes, No, N/A)","Approval\n(Yes, No, N/A)","Comments"]
[null,null,1,null,null,null,null,null,null,null,null,null,null,null,null,null,null,null,null,null,null,null,null,null,null,null,null,null,null,null,null,"SDC 8.","Implement force protection at entrances, such as boulders or bollards.",null,null,null,null,{"$f":"IF(OR(AI59=\"Yes\",AI59=\"N/A\"),1,IF(AI59=\"No\",0,IF(OR(AH59=\"N/A\",AH59=\"\"),\"\",IF(AH59=\"Yes\",1,))))","v":""}]
[null,null,1,null,null,null,null,null,null,null,null,null,null,null,null,null,null,null,null,null,null,null,null,null,null,null,null,null,null,null,null,"SDC 9. ","Maintain open view sheds to and from building entrances.",null,null,null,null,""]
[null,null,1,null,null,null,null,null,null,null,null,null,null,null,null,null,null,null,null,null,null,null,null,null,null,null,null,null,null,null,null,"SDC 10.","Use force protection measures such as berms, walls, or fencing, as required, between buildings and areas used by vehicles.",null,null,null,null,""]
[null,null,1,null,null,null,null,null,null,null,null,null,null,null,null,null,null,null,null,null,null,null,null,null,null,null,null,null,null,null,null,"SDC 11.","Use trees to further shield protected assets within buildings.",null,null,null,null,""]
[null,null,1,null,null,null,null,null,null,null,null,null,null,null,null,null,null,null,null,null,null,null,null,null,null,null,null,null,null,null,null,"C01.4.4 Building Perimeter",null,"Compliance\n(Yes, No, N/A)","Approval\n(Yes, No, N/A)","Comments"]
[null,null,1,null,null,null,null,null,null,null,null,null,null,null,null,null,null,null,null,null,null,null,null,null,null,null,null,null,null,null,null,"SDC 12.","Locate service areas and utility infrastructure to the side or rear of building, relative to streets and the primary building entrance.",null,null,null,null,{"$f":"IF(OR(AI64=\"Yes\",AI64=\"N/A\"),1,IF(AI64=\"No\",0,IF(OR(AH64=\"N/A\",AH64=\"\"),\"\",IF(AH64=\"Yes\",1,))))","v":""}]
[null,null,1,null,null,null,null,null,null,null,null,null,null,null,null,null,null,null,null,null,null,null,null,null,null,null,null,null,null,null,null,"SDC 13.","Orient service areas and loading bays to side or rear areas. Avoid orientation to primary streets, parking areas, and building entrances",null,null,null,null,""]
[null,null,1,null,null,null,null,null,null,null,null,null,null,null,null,null,null,null,null,null,null,null,null,null,null,null,null,null,null,null,null,"SDC 14.","Avoid obstructing fire hydrants, fire department inlet connections, or fire protection system control valves in a manner that would prevent such equipment or fire hydrants from being immediately visible and accessible (NFPA 1).",null,null,null,null,""]
[null,null,1,null,null,null,null,null,null,null,null,null,null,null,null,null,null,null,null,null,null,null,null,null,null,null,null,null,null,null,null,"C01.4.5 Parking Area Perimeter",null,"Compliance\n(Yes, No, N/A)","Approval\n(Yes, No, N/A)","Comments"]
[null,null,1,null,null,null,null,null,null,null,null,null,null,null,null,null,null,null,null,null,null,null,null,null,null,null,null,null,null,null,null,"SDC 15.","Provide walkways through parking areas that lead to primary building entrances.",null,null,null,null,{"$f":"IF(OR(AI68=\"Yes\",AI68=\"N/A\"),1,IF(AI68=\"No\",0,IF(OR(AH68=\"N/A\",AH68=\"\"),\"\",IF(AH68=\"Yes\",1,))))","v":""}]
[null,null,1,null,null,null,null,null,null,null,null,null,null,null,null,null,null,null,null,null,null,null,null,null,null,null,null,null,null,null,null,"SDC 16.","Contain sidewalks and shared-use paths that connect building entrances to base-wide network of sidewalks, pathways, and trails.",null,null,null,null,""]
[null,null,1,null,null,null,null,null,null,null,null,null,null,null,null,null,null,null,null,null,null,null,null,null,null,null,null,null,null,null,null,"SDC 17.","Use tall shade trees and low shrubs to create clear lines of sight at eye-level across parking areas and to building entrances.",null,null,null,null,""]
[null,null,1,null,null,null,null,null,null,null,null,null,null,null,null,null,null,null,null,null,null,null,null,null,null,null,null,null,null,null,null,"C01.5 Treatments for Specific Areas"]
[null,null,1,null,null,null,null,null,null,null,null,null,null,null,null,null,null,null,null,null,null,null,null,null,null,null,null,null,null,null,null,"C01.5.1 Main Entry Control Facilities",null,"Compliance\n(Yes, No, N/A)","Approval\n(Yes, No, N/A)","Comments"]
[null,null,1,null,null,null,null,null,null,null,null,null,null,null,null,null,null,null,null,null,null,null,null,null,null,null,null,null,null,null,null,"SDC 18.","Provide entry walls and vertical sculptural elements on each side of the entrance.",null,null,null,null,{"$f":"IF(OR(AI73=\"Yes\",AI73=\"N/A\"),1,IF(AI73=\"No\",0,IF(OR(AH73=\"N/A\",AH73=\"\"),\"\",IF(AH73=\"Yes\",1,))))","v":""}]
[null,null,1,null,null,null,null,null,null,null,null,null,null,null,null,null,null,null,null,null,null,null,null,null,null,null,null,null,null,null,null,"SDC 19.","Provide tree planting at the Tyndall Gate in the Flightline District in accordance with the landscape requirements for the Flightline District. ",null,null,null,null,""]
[null,null,1,null,null,null,null,null,null,null,null,null,null,null,null,null,null,null,null,null,null,null,null,null,null,null,null,null,null,null,null,"SDC 20.","Arrange trees and ground-level plantings as indicated in graphic. Ground-level species should remain low to allow eye-level visibility within the ECF areas. Place accent or flowering trees at highly visible areas.",null,null,null,null,""]
[null,null,1,null,null,null,null,null,null,null,null,null,null,null,null,null,null,null,null,null,null,null,null,null,null,null,null,null,null,null,null,"SDC 21.","Provide turf only in the Maintained Zone at the back of the curb for increased visibility in the ECF areas.",null,null,null,null,""]
[null,null,1,null,null,null,null,null,null,null,null,null,null,null,null,null,null,null,null,null,null,null,null,null,null,null,null,null,null,null,null,"SDC 22.","Reconfigure existing landscape elements in the ECF areas to accommodate new gate and intersection alignments.",null,null,null,null,""]
[null,null,1,null,null,null,null,null,null,null,null,null,null,null,null,null,null,null,null,null,null,null,null,null,null,null,null,null,null,null,null,"SDC 23.","Select plant materials from the Manicured Zone Plant List. Refer to the Flightline Plant List for specific plant requirements in the Flightline District.",null,null,null,null,""]
[null,null,1,null,null,null,null,null,null,null,null,null,null,null,null,null,null,null,null,null,null,null,null,null,null,null,null,null,null,null,null,"SDC 24.","Use low maintenance landscape treatment to include xeriscape practices that feature plant species which require low to moderate water consumption. ",null,null,null,null,""]
[null,null,1,null,null,null,null,null,null,null,null,null,null,null,null,null,null,null,null,null,null,null,null,null,null,null,null,null,null,null,null,"SDC 25.","Integrate traditional and/or natured-based stormwater management solutions into the overall facility layout and planting design.",null,null,null,null,""]
[null,null,1,null,null,null,null,null,null,null,null,null,null,null,null,null,null,null,null,null,null,null,null,null,null,null,null,null,null,null,null,"SDC 26.","Refer to the IFS Design Intent: Architecture Image & Character appendix for design guidelines for any architectural elements.",null,null,null,null,""]
[null,null,1,null,null,null,null,null,null,null,null,null,null,null,null,null,null,null,null,null,null,null,null,null,null,null,null,null,null,null,null,"C01.5.2 Community Common Typology",null,null,"Approval\n(Yes, No, N/A)","Comments"]
[null,null,1,null,null,null,null,null,null,null,null,null,null,null,null,null,null,null,null,null,null,null,null,null,null,null,null,null,null,null,null,"SDC 27.","Install a manicured central lawn to provide space for various activities. Design the lawn to be resilient under heavy public use.",null,null,null,null,{"$f":"IF(OR(AI83=\"Yes\",AI83=\"N/A\"),1,IF(AI83=\"No\",0,IF(OR(AH83=\"N/A\",AH83=\"\"),\"\",IF(AH83=\"Yes\",1,))))","v":""}]
[null,null,1,null,null,null,null,null,null,null,null,null,null,null,null,null,null,null,null,null,null,null,null,null,null,null,null,null,null,null,null,"SDC 28.","Install non-turf landscaped areas around the perimeter of the Community Common. Include a mix of evergreen ground cover, evergreen shrubs, flowering shrubs, and perennials. ",null,null,null,null,""]
[null,null,1,null,null,null,null,null,null,null,null,null,null,null,null,null,null,null,null,null,null,null,null,null,null,null,null,null,null,null,null,"SDC 29.","Provide canopy trees along both sides of the walking path for a minimum of 60% of shade for along the entire length.",null,null,null,null,""]
[null,null,1,null,null,null,null,null,null,null,null,null,null,null,null,null,null,null,null,null,null,null,null,null,null,null,null,null,null,null,null,"SDC 30.","Maintain a clear line-of-sight line from building entrances to the Community Common. Trees should be spaced at maximum 40 feet on center.",null,null,null,null,""]
[null,null,1,null,null,null,null,null,null,null,null,null,null,null,null,null,null,null,null,null,null,null,null,null,null,null,null,null,null,null,null,"SDC 31.","Facilitate maintenance and pedestrian movement by preserving access from the buildings to open space.",null,null,null,null,""]
[null,null,1,null,null,null,null,null,null,null,null,null,null,null,null,null,null,null,null,null,null,null,null,null,null,null,null,null,null,null,null,"SDC 32.","Install a minimum 10-foot-wide pedestrian walking path around the Community Common. Use concrete pavers or stamped concrete. See Section C05, Sidewalks, Pathways and Trails, for allowed types of enhanced pavements.",null,null,null,null,""]
[null,null,1,null,null,null,null,null,null,null,null,null,null,null,null,null,null,null,null,null,null,null,null,null,null,null,null,null,null,null,null,"SDC 33.","Include four benches at each building entrance near the edge of pavement and away from direct flow of pedestrian movement. ",null,null,null,null,""]
[null,null,{"$f":"IF(AL90<>\"\",0,IF($B$48=1,0,1))","v":1},null,null,null,null,null,null,null,null,null,null,null,null,null,null,null,null,null,null,null,null,null,null,null,null,null,null,null,null,"SDC 34.","Locate and position outdoor seating and pedestrian areas in spaces shaded by buildings, tree canopies, or shade structures. Introduce shade structures to provide shelter space when needed.",null,null,null,null,{"$f":"IF(OR(AI90=\"Yes\",AI90=\"N/A\"),1,IF(AI90=\"No\",0,IF(OR(AH90=\"N/A\",AH90=\"\"),\"\",IF(AH90=\"Yes\",1,))))","v":""}]
[null,null,1,null,null,null,null,null,null,null,null,null,null,null,null,null,null,null,null,null,null,null,null,null,null,null,null,null,null,null,null,"SDC 35.","Confirm individual program requirements and the need for items such as electric outlets needed for power during events.",null,null,null,null,""]
[null,null,1,null,null,null,null,null,null,null,null,null,null,null,null,null,null,null,null,null,null,null,null,null,null,null,null,null,null,null,null,"C01.5.3 Community Common Typology, Facility Entry Areas",null,null,"Approval\n(Yes, No, N/A)","Comments"]
[null,null,1,null,null,null,null,null,null,null,null,null,null,null,null,null,null,null,null,null,null,null,null,null,null,null,null,null,null,null,null,"SDC 36.","Install concrete mow header along the edges of the landscaped areas. ",null,null,null,null,""]
[null,null,1,null,null,null,null,null,null,null,null,null,null,null,null,null,null,null,null,null,null,null,null,null,null,null,null,null,null,null,null,"SDC 37.","Incorporate low landscape plantings, art work, and site furnishings in the building entry area. ",null,null,null,null,""]
[null,null,1,null,null,null,null,null,null,null,null,null,null,null,null,null,null,null,null,null,null,null,null,null,null,null,null,null,null,null,null,"C01.5.4 Coastal Zone Facilities, Shorelines, & Waterfronts"]
[null,null,1,null,null,null,null,null,null,null,null,null,null,null,null,null,null,null,null,null,null,null,null,null,null,null,null,null,null,null,null,"C01.5.4.1 Piers, Docks, Bulkheads, & Other Marine-related Facilities (Shoreline/Off-Shore)",null,"Compliance\n(Yes, No, N/A)","Approval\n(Yes, No, N/A)","Comments"]
[null,null,1,null,null,null,null,null,null,null,null,null,null,null,null,null,null,null,null,null,null,null,null,null,null,null,null,null,null,null,null,"SDC 38.","Coordinate with 325 CES Environmental Element and the Tyndall AFB INRMP to align with coastal restoration and resilience plan objectives and to identify the site-wide ecological context and potential vulnerabilities.",null,null,null,null,""]
[null,null,1,null,null,null,null,null,null,null,null,null,null,null,null,null,null,null,null,null,null,null,null,null,null,null,null,null,null,null,null,"SDC 39.","Follow all applicable local, state, and federal codes for planning, design, and construction activities, including but not limited to, demolition, dredging, and new construction.",null,null,null,null,""]
[null,null,1,null,null,null,null,null,null,null,null,null,null,null,null,null,null,null,null,null,null,null,null,null,null,null,null,null,null,null,null,"SDC 40.","Protect adjacent shorelines, waterways, wetlands, and other environments during construction.",null,null,null,null,""]
[null,null,1,null,null,null,null,null,null,null,null,null,null,null,null,null,null,null,null,null,null,null,null,null,null,null,null,null,null,null,null,"SDC 41.","Protect all existing facilities during construction and prohibit debris from migrating outside construction zone.",null,null,null,null,""]
[null,null,1,null,null,null,null,null,null,null,null,null,null,null,null,null,null,null,null,null,null,null,null,null,null,null,null,null,null,null,null,"SDC 42.","Use environmentally safe materials suitable for a marine environment that are durable and resistant to saltwater, fire, flooding, heat, cold, wind, ultraviolet (UV) sunlight, and fuels/oil.",null,null,null,null,""]
[null,null,1,null,null,null,null,null,null,null,null,null,null,null,null,null,null,null,null,null,null,null,null,null,null,null,null,null,null,null,null,"SDC 43.","Use deck surfaces consisting of concrete or composite (wood-plastic) material and that resist sunlight (UV), wetting/drying, freezing/thawing, and fuels/oils. Use a textured surface that is skid resistant and resists abrasion, denting from dropped objects, and cracking.",null,null,null,null,""]
[null,null,1,null,null,null,null,null,null,null,null,null,null,null,null,null,null,null,null,null,null,null,null,null,null,null,null,null,null,null,null,"SDC 44.","Develop, where appropriate, landscape-scale nature-based features for increased storm-related resiliency, diversity of habitat, and ecological benefits",null,null,null,null,""]
[null,null,1,null,null,null,null,null,null,null,null,null,null,null,null,null,null,null,null,null,null,null,null,null,null,null,null,null,null,null,null,"SDC 45.","Consider environmental loads from wind, tidal and river flows, waves, floating debris, and floods and surges, among other naturally occurring conditions and events.",null,null,null,null,""]
[null,null,{"$f":"IF($B$48=1,0,1)","v":1}]
[null,null,{"$f":"IF($B$48=1,0,1)","v":1}]
[null,null,{"$f":"IF($B$48=1,0,1)","v":1}]
[null,null,0,null,null,null,null,null,null,null,null,null,null,null,null,null,null,null,null,null,null,null,null,null,null,null,null,null,null,null,null,"C02 Utilities",null,"Contractor \nCompliance","Reviewer \nApproval","Contractor Comments","Reviewer Comments","Completed/\nAccepted"]
[null,null,{"$f":"IF($B$108=1,0,1)","v":1},null,null,null,null,null,null,null,null,null,null,null,null,null,null,null,null,null,null,null,null,null,null,null,null,null,null,null,null,"C02.4.3 Typical Underground Utility Clear Zones & Easements",null,"Compliance\n(Yes, No, N/A)","Approval\n(Yes, No, N/A)","Comments"]
[null,null,{"$f":"IF(AL110<>\"\",0,IF($B$108=1,0,1))","v":1},null,null,null,null,null,null,null,null,null,null,null,null,null,null,null,null,null,null,null,null,null,null,null,null,null,null,null,null,"UC 1.","Provide a minimum 10-foot clear zone or easement for all underground utilities.",null,null,null,null,{"$f":"IF(OR(AI110=\"Yes\",AI110=\"N/A\"),1,IF(AI110=\"No\",0,IF(OR(AH110=\"N/A\",AH110=\"\"),\"\",IF(AH110=\"Yes\",1,))))","v":""}]
[null,null,{"$f":"IF(AL111<>\"\",0,IF($B$108=1,0,1))","v":1},null,null,null,null,null,null,null,null,null,null,null,null,null,null,null,null,null,null,null,null,null,null,null,null,null,null,null,null,"UC 2.","Do not place structures or trees within clear zones or easements.",null,null,null,null,""]
[null,null,1,null,null,null,null,null,null,null,null,null,null,null,null,null,null,null,null,null,null,null,null,null,null,null,null,null,null,null,null,"UC 3.","Comply with the Utility owner's clear zone/easement requirements for all privatized utilities.",null,null,null,null,""]
[null,null,1,null,null,null,null,null,null,null,null,null,null,null,null,null,null,null,null,null,null,null,null,null,null,null,null,null,null,null,null,"UC 4.","Provide a minimum clear zone or easement of 10 feet from the centerline or edge of underground structure or equipment pad for all Air Force-owned.",null,null,null,null,""]
[null,null,1,null,null,null,null,null,null,null,null,null,null,null,null,null,null,null,null,null,null,null,null,null,null,null,null,null,null,null,null,"C02.4.4 Screening for Utility Infrastructure",null,"Compliance\n(Yes, No, N/A)","Approval\n(Yes, No, N/A)","Comments"]
[null,null,1,null,null,null,null,null,null,null,null,null,null,null,null,null,null,null,null,null,null,null,null,null,null,null,null,null,null,null,null,"UC 5.","Use evergreen shrubs to screen all aboveground utility boxes and infrastructure from adjacent road or sidewalk.",null,null,null,null,""]
[null,null,1,null,null,null,null,null,null,null,null,null,null,null,null,null,null,null,null,null,null,null,null,null,null,null,null,null,null,null,null,"UC 6.","Provide a minimum 4-foot offset from the shrubs' planted edge to the edge of the utility box to allow enough clearance for utility maintenance to be performed.",null,null,null,null,""]
[null,null,1,null,null,null,null,null,null,null,null,null,null,null,null,null,null,null,null,null,null,null,null,null,null,null,null,null,null,null,null,"C02.4.5 Low-Impact Development",null,"Compliance\n(Yes, No, N/A)","Approval\n(Yes, No, N/A)","Comments"]
[null,null,1,null,null,null,null,null,null,null,null,null,null,null,null,null,null,null,null,null,null,null,null,null,null,null,null,null,null,null,null,"UC 7. ","Coordinate with engineered systems that filter stormwater from parking lots and impervious surfaces, such as bioretention cells, filter strips, and tree box filters. Ensure all plantings, pipes, and utilities are designed in concert with each other. ",null,null,null,null,""]
[null,null,1,null,null,null,null,null,null,null,null,null,null,null,null,null,null,null,null,null,null,null,null,null,null,null,null,null,null,null,null,"UC 8.","Use native vegetated areas to filter, direct, and retain stormwater, such as rain gardens and bio-swales. Ensure adequate coverage and clearance requirements are met. ",null,null,null,null,""]
[null,null,1,null,null,null,null,null,null,null,null,null,null,null,null,null,null,null,null,null,null,null,null,null,null,null,null,null,null,null,null,"UC 9. ","Locate plantings and utilities so they do not interfere with water collection systems, such as subsurface collection facilities, cisterns, or rain barrels.",null,null,null,null,""]
[null,null,1,null,null,null,null,null,null,null,null,null,null,null,null,null,null,null,null,null,null,null,null,null,null,null,null,null,null,null,null,"C02.4.6 Multi-Modal Spine Utility Corridor",null,"Compliance\n(Yes, No, N/A)","Approval\n(Yes, No, N/A)","Comments"]
[null,null,1,null,null,null,null,null,null,null,null,null,null,null,null,null,null,null,null,null,null,null,null,null,null,null,null,null,null,null,null,"UC 10.","Design the landscaped areas to collect drainage from the entire corridor.",null,null,null,null,""]
[null,null,1,null,null,null,null,null,null,null,null,null,null,null,null,null,null,null,null,null,null,null,null,null,null,null,null,null,null,null,null,"UC 11.","Coordinate drainage connections to the box culvert need to be coordinated with other utilities installed in the area.",null,null,null,null,""]
[null,null,1,null,null,null,null,null,null,null,null,null,null,null,null,null,null,null,null,null,null,null,null,null,null,null,null,null,null,null,null,"UC 12.","Do not plant trees directly over underground utilities.",null,null,null,null,""]
[null,null,1,null,null,null,null,null,null,null,null,null,null,null,null,null,null,null,null,null,null,null,null,null,null,null,null,null,null,null,null,"UC 13.","Coordinate with adjacent utilities and other corridor elements to avoid conflicts and allow for ease of maintenance.",null,null,null,null,""]
[null,null,1,null,null,null,null,null,null,null,null,null,null,null,null,null,null,null,null,null,null,null,null,null,null,null,null,null,null,null,null,"UC 14.","Coordinate parking area and building utilities with corridor utilities.",null,null,null,null,""]
[null,null,1,null,null,null,null,null,null,null,null,null,null,null,null,null,null,null,null,null,null,null,null,null,null,null,null,null,null,null,null,"UC 15. ","Design foundations for items such as lighting and signage to avoid conflicts with underground utilities.",null,null,null,null,""]
[null,null,1]
[null,null,1]
[null,null,1]
[null,null,0,null,null,null,null,null,null,null,null,null,null,null,null,null,null,null,null,null,null,null,null,null,null,null,null,null,null,null,null,"C03 Parking Areas",null,"Contractor \nCompliance","Reviewer \nApproval","Contractor Comments","Reviewer Comments","Completed/\nAccepted"]
[null,null,{"$f":"IF($B$131=1,0,1)","v":1},null,null,null,null,null,null,null,null,null,null,null,null,null,null,null,null,null,null,null,null,null,null,null,null,null,null,null,null,"C03.4.2 General Criteria for Installation Parking Areas",null,"Compliance\n(Yes, No, N/A)","Approval\n(Yes, No, N/A)","Comments"]
[null,null,{"$f":"IF(AL133<>\"\",0,IF($B$131=1,0,1))","v":1},null,null,null,null,null,null,null,null,null,null,null,null,null,null,null,null,null,null,null,null,null,null,null,null,null,null,null,null,"PAC 1.","Coordinate parking area drainage with adjacent and base-wide stormwater facilities.",null,null,null,null,{"$f":"IF(OR(AI133=\"Yes\",AI133=\"N/A\"),1,IF(AI133=\"No\",0,IF(OR(AH133=\"N/A\",AH133=\"\"),\"\",IF(AH133=\"Yes\",1,))))","v":""}]
[null,null,1,null,null,null,null,null,null,null,null,null,null,null,null,null,null,null,null,null,null,null,null,null,null,null,null,null,null,null,null,"PAC 2. ","Design parking areas without interior raised curbs so they can be used as temporary staging space during response events.",null,null,null,null,""]
[null,null,1,null,null,null,null,null,null,null,null,null,null,null,null,null,null,null,null,null,null,null,null,null,null,null,null,null,null,null,null,"PAC 3.","Maintain emergency vehicle access during peak rainfall events.",null,null,null,null,""]
[null,null,1,null,null,null,null,null,null,null,null,null,null,null,null,null,null,null,null,null,null,null,null,null,null,null,null,null,null,null,null,"PAC 4. ","Provide illumination for parking areas and connections to buildings and adjacent roads. Refer to Section C09, Lighting, for requirements.",null,null,null,null,""]
[null,null,1,null,null,null,null,null,null,null,null,null,null,null,null,null,null,null,null,null,null,null,null,null,null,null,null,null,null,null,null,"PAC 5. ","Provide pedestrian and bicycle access to nearby connections (such as sidewalks and the Multi-Modal Spine).",null,null,null,null,""]
[null,null,1,null,null,null,null,null,null,null,null,null,null,null,null,null,null,null,null,null,null,null,null,null,null,null,null,null,null,null,null,"PAC 6.","Do not use pervious concrete paving within roadways or UFC-required parking areas. Construct parking in excess of UFC requirements with pervious pavement.",null,null,null,null,""]
[null,null,1,null,null,null,null,null,null,null,null,null,null,null,null,null,null,null,null,null,null,null,null,null,null,null,null,null,null,null,null,"PAC 7.","Incorporate landscape treatments within and adjacent to parking areas. See Section C06, Landscape.",null,null,null,null,""]
[null,null,1,null,null,null,null,null,null,null,null,null,null,null,null,null,null,null,null,null,null,null,null,null,null,null,null,null,null,null,null,"PAC 8. ","Provide opportunities for remote parking typology for short-term, special-event parking scenarios.",null,null,null,null,""]
[null,null,1,null,null,null,null,null,null,null,null,null,null,null,null,null,null,null,null,null,null,null,null,null,null,null,null,null,null,null,null,"PAC 9.","Designate parking spaces for motorists who are accompanied by a child in a stroller or where parking is likely to include parents with young children.",null,null,null,null,""]
[null,null,1,null,null,null,null,null,null,null,null,null,null,null,null,null,null,null,null,null,null,null,null,null,null,null,null,null,null,null,null,"PAC 10.","Reserve efficient-mode priority parking typology spaces for electric vehicles, vanpools, and carpools.",null,null,null,null,""]
[null,null,1,null,null,null,null,null,null,null,null,null,null,null,null,null,null,null,null,null,null,null,null,null,null,null,null,null,null,null,null,"PAC 11.","Eliminate on-street parking along arterials and avoid on-street parking on collector streets.",null,null,null,null,""]
[null,null,1,null,null,null,null,null,null,null,null,null,null,null,null,null,null,null,null,null,null,null,null,null,null,null,null,null,null,null,null,"PAC 12.","Include temporary vehicle access and parking for special program providers to enable deliveries and event staging.",null,null,null,null,""]
[null,null,1,null,null,null,null,null,null,null,null,null,null,null,null,null,null,null,null,null,null,null,null,null,null,null,null,null,null,null,null,"PAC 13.","Use recycled asphalt pavement mixes for parking areas to the maximum extent allowed by Unified Facilities Guide Specification Division 32, Exterior Improvements.",null,null,null,null,""]
[null,null,1,null,null,null,null,null,null,null,null,null,null,null,null,null,null,null,null,null,null,null,null,null,null,null,null,null,null,null,null,"PAC 14.","Provide wayfinding signage per UFC requirements.",null,null,null,null,""]
[null,null,1,null,null,null,null,null,null,null,null,null,null,null,null,null,null,null,null,null,null,null,null,null,null,null,null,null,null,null,null,"PAC 15.","Size driveway aisles and parking spaces per IFS requirements.",null,null,null,null,""]
[null,null,1,null,null,null,null,null,null,null,null,null,null,null,null,null,null,null,null,null,null,null,null,null,null,null,null,null,null,null,null,"C03.4.3 Specific Criteria for Districts",null,"Compliance\n(Yes, No, N/A)","Approval\n(Yes, No, N/A)","Comments"]
[null,null,1,null,null,null,null,null,null,null,null,null,null,null,null,null,null,null,null,null,null,null,null,null,null,null,null,null,null,null,null,"PAC 16.","Shared Parking: Analyze and provide data that show parking numbers are coordinated with other parking facilities within a 5-minute walk to avoid providing excess parking areas.",null,null,null,null,""]
[null,null,1,null,null,null,null,null,null,null,null,null,null,null,null,null,null,null,null,null,null,null,null,null,null,null,null,null,null,null,null,"PAC 17.","Remote Parking: Encourage use of remote parking areas for special event purposes.",null,null,null,null,""]
[null,null,1,null,null,null,null,null,null,null,null,null,null,null,null,null,null,null,null,null,null,null,null,null,null,null,null,null,null,null,null,"PAC 18.","Parking Structure: Study benefits and costs of a potential parking structure.",null,null,null,null,""]
[null,null,1,null,null,null,null,null,null,null,null,null,null,null,null,null,null,null,null,null,null,null,null,null,null,null,null,null,null,null,null,"PAC 19.","Efficient-Mode Priority Parking: Designate non-accessible parking spaces close to building entrances for carpool, vanpool, and electric vehicles.",null,null,null,null,""]
[null,null,{"$f":"IF($B$131=1,0,1)","v":1}]
[null,null,{"$f":"IF($B$131=1,0,1)","v":1}]
[null,null,{"$f":"IF($B$131=1,0,1)","v":1}]
[null,null,0,null,null,null,null,null,null,null,null,null,null,null,null,null,null,null,null,null,null,null,null,null,null,null,null,null,null,null,null,"C04 Stormwater",null,"Contractor \nCompliance","Reviewer \nApproval","Contractor Comments","Reviewer Comments","Completed/\nAccepted"]
[null,null,{"$f":"IF($B$156=1,0,1)","v":1},null,null,null,null,null,null,null,null,null,null,null,null,null,null,null,null,null,null,null,null,null,null,null,null,null,null,null,null,"C04.5.2 General Stormwater Criteria",null,"Compliance\n(Yes, No, N/A)","Approval\n(Yes, No, N/A)","Comments"]
[null,null,{"$f":"IF(AL158<>\"\",0,IF($B$156=1,0,1))","v":1},null,null,null,null,null,null,null,null,null,null,null,null,null,null,null,null,null,null,null,null,null,null,null,null,null,null,null,null,"SC 1.","Site stormwater management plan fully integrates, to the maximum extent technically feasible (METF), traditional \"hard\" infrastructure elements with NNBF to reduce flooding potential, enhance water quality, comply with the antiterrorism (AT) requirements, and generally provide a more livable and sustainable environment on the base.",null,null,null,null,{"$f":"IF(OR(AI158=\"Yes\",AI158=\"N/A\"),1,IF(AI158=\"No\",0,IF(OR(AH158=\"N/A\",AH158=\"\"),\"\",IF(AH158=\"Yes\",1,))))","v":""}]
[null,null,{"$f":"IF(AL159<>\"\",0,IF($B$156=1,0,1))","v":1},null,null,null,null,null,null,null,null,null,null,null,null,null,null,null,null,null,null,null,null,null,null,null,null,null,null,null,null,"SC 2.","Satisfy applicable requirements of UFC 3-201-01, Civil Engineering.",null,null,null,null,""]
[null,null,1,null,null,null,null,null,null,null,null,null,null,null,null,null,null,null,null,null,null,null,null,null,null,null,null,null,null,null,null,"SC 3.","Satisfy requirements of UFC 3-210-10, Low Impact Development.",null,null,null,null,""]
[null,null,1,null,null,null,null,null,null,null,null,null,null,null,null,null,null,null,null,null,null,null,null,null,null,null,null,null,null,null,null,"SC 4.","Satisfy requirements of Environmental Resource Permitting Applicant's Handbook - Volume I.",null,null,null,null,""]
[null,null,1,null,null,null,null,null,null,null,null,null,null,null,null,null,null,null,null,null,null,null,null,null,null,null,null,null,null,null,null,"SC 5.","Satisfy requirements of Environmental Resource Permitting Applicant's Handbook - Volume II, which provides specific sizing and design guidance for various stormwater elements.",null,null,null,null,""]
[null,null,1,null,null,null,null,null,null,null,null,null,null,null,null,null,null,null,null,null,null,null,null,null,null,null,null,null,null,null,null,"SC 6.","Employ NNBF to the METF for stormwater that use or mimic natural processes to: (1) infiltrate and recharge, (2) filter and treat, (3) evapotranspire through biological uptake, and/or (4) harvest and use precipitation near to where it falls to earth.",null,null,null,null,""]
[null,null,1,null,null,null,null,null,null,null,null,null,null,null,null,null,null,null,null,null,null,null,null,null,null,null,null,null,null,null,null,"SC 7.","Locate stormwater elements in such a way as to maximize stormwater runoff capture, align with site drainage patterns, integrate with proposed land uses, enhance safety, and ensure accessibility.",null,null,null,null,""]
[null,null,1,null,null,null,null,null,null,null,null,null,null,null,null,null,null,null,null,null,null,null,null,null,null,null,null,null,null,null,null,"SC 8.","Maximize the use of vegetated open channels and minimize the use of pipes for conveyance of stormwater runoff.",null,null,null,null,""]
[null,null,1,null,null,null,null,null,null,null,null,null,null,null,null,null,null,null,null,null,null,null,null,null,null,null,null,null,null,null,null,"SC 9.","Minimize impervious surfaces and minimize turf areas.",null,null,null,null,""]
[null,null,1,null,null,null,null,null,null,null,null,null,null,null,null,null,null,null,null,null,null,null,null,null,null,null,null,null,null,null,null,"SC 10.","Incorporate pervious pavement at overflow parking areas, walkways, plazas, and other large expanses of pavement with low traffic loads.",null,null,null,null,""]
[null,null,1,null,null,null,null,null,null,null,null,null,null,null,null,null,null,null,null,null,null,null,null,null,null,null,null,null,null,null,null,"SC 11.","Locate, design, and/or raise (that is, configure as broad and shallow) stormwater elements in accordance with FDEP requirements to comply with minimum separation of seasonal high groundwater and bottom of facility.",null,null,null,null,""]
[null,null,1,null,null,null,null,null,null,null,null,null,null,null,null,null,null,null,null,null,null,null,null,null,null,null,null,null,null,null,null,"SC 12.","Avoid stormwater treatment and storage sites in contaminant areas.",null,null,null,null,""]
[null,null,1,null,null,null,null,null,null,null,null,null,null,null,null,null,null,null,null,null,null,null,null,null,null,null,null,null,null,null,null,"SC 13.","Perform a groundwater mounding analysis to document that the design will perform as required (not required for wet detention facilities) per the requirements listed in Environmental Resource Permitting Applicant's Handbook - Volume II.",null,null,null,null,""]
[null,null,1,null,null,null,null,null,null,null,null,null,null,null,null,null,null,null,null,null,null,null,null,null,null,null,null,null,null,null,null,"C04.5.3 Stormwater Criteria for Building Perimeters",null,"Compliance\n(Yes, No, N/A)","Approval\n(Yes, No, N/A)","Comments"]
[null,null,1,null,null,null,null,null,null,null,null,null,null,null,null,null,null,null,null,null,null,null,null,null,null,null,null,null,null,null,null,"SC 14.","Use Bioretention, Bioswale, and/or Subsurface Storage and Infiltration elements to the METF to reduce the need for pipes for conveyance.",null,null,null,null,""]
[null,null,1,null,null,null,null,null,null,null,null,null,null,null,null,null,null,null,null,null,null,null,null,null,null,null,null,null,null,null,null,"C04.5.4 Stormwater Criteria for Parking Areas",null,"Compliance\n(Yes, No, N/A)","Approval\n(Yes, No, N/A)","Comments"]
[null,null,1,null,null,null,null,null,null,null,null,null,null,null,null,null,null,null,null,null,null,null,null,null,null,null,null,null,null,null,null,"SC 15.","Direct roof runoff into nearby stormwater element(s) where it can be treated and infiltrated.",null,null,null,null,""]
[null,null,1,null,null,null,null,null,null,null,null,null,null,null,null,null,null,null,null,null,null,null,null,null,null,null,null,null,null,null,null,"SC 16.","To the METF, use Pervious Pavement, Subsurface Storage and Infiltration, and/or Tree Pits/Trenches",null,null,null,null,""]
[null,null,1,null,null,null,null,null,null,null,null,null,null,null,null,null,null,null,null,null,null,null,null,null,null,null,null,null,null,null,null,"SC 17.","Break up expansive impervious pavements with vegetated stormwater elements to increase shade and filter/infiltrate stormwater",null,null,null,null,""]
[null,null,1,null,null,null,null,null,null,null,null,null,null,null,null,null,null,null,null,null,null,null,null,null,null,null,null,null,null,null,null,"C04.5.5 Stormwater Criteria for the Multi-Modal Spine",null,"Compliance\n(Yes, No, N/A)","Approval\n(Yes, No, N/A)","Comments"]
[null,null,1,null,null,null,null,null,null,null,null,null,null,null,null,null,null,null,null,null,null,null,null,null,null,null,null,null,null,null,null,"SC 18.","Drain impervious surfaces onto landscape areas to the METF and in a manner that minimizes erosion.",null,null,null,null,""]
[null,null,1,null,null,null,null,null,null,null,null,null,null,null,null,null,null,null,null,null,null,null,null,null,null,null,null,null,null,null,null,"SC 19.","Use Bioswale, Enhanced Tree Pits/Trenches, Pervious Pavement walkways, and/or Stormwater Planter to the METF.",null,null,null,null,""]
[null,null,1,null,null,null,null,null,null,null,null,null,null,null,null,null,null,null,null,null,null,null,null,null,null,null,null,null,null,null,null,"SC 20.","Incorporate bump-out stormwater planters at intersections and mid-block crossings if on-street parking is present/available.",null,null,null,null,""]
[null,null,1,null,null,null,null,null,null,null,null,null,null,null,null,null,null,null,null,null,null,null,null,null,null,null,null,null,null,null,null,"SC 21.","Provide roadside drainage instead of the traditional curb and gutter with inlets and/or pipes where METF.",null,null,null,null,""]
[null,null,1,null,null,null,null,null,null,null,null,null,null,null,null,null,null,null,null,null,null,null,null,null,null,null,null,null,null,null,null,"C04.5.6 Stormwater Criteria for Open Space",null,null,"Approval\n(Yes, No, N/A)","Comments"]
[null,null,1,null,null,null,null,null,null,null,null,null,null,null,null,null,null,null,null,null,null,null,null,null,null,null,null,null,null,null,null,"SC 22.","Comply with Florida Department of Environmental Protection's technical requirements and revegetate the stormwater elements in these areas in accordance with the landscape requirement of this Landscape Master Plan.",null,null,null,null,""]
[null,null,1,null,null,null,null,null,null,null,null,null,null,null,null,null,null,null,null,null,null,null,null,null,null,null,null,null,null,null,null,"SC 23.","Maximize surface flows/expressions and minimizes the use of piped drainage conveyance.",null,null,null,null,""]
[null,null,1,null,null,null,null,null,null,null,null,null,null,null,null,null,null,null,null,null,null,null,null,null,null,null,null,null,null,null,null,"SC 24.","Design for desire paths and include components such as vegetative or physical barriers that discourage foot / bike traffic through element.",null,null,null,null,""]
[null,null,1,null,null,null,null,null,null,null,null,null,null,null,null,null,null,null,null,null,null,null,null,null,null,null,null,null,null,null,null,"C04.6.1 General Stormwater Elements",null,"Compliance\n(Yes, No, N/A)","Approval\n(Yes, No, N/A)","Comments"]
[null,null,1,null,null,null,null,null,null,null,null,null,null,null,null,null,null,null,null,null,null,null,null,null,null,null,null,null,null,null,null,"SC 25.","Use a maximum 3:1 side slope for vegetated stormwater elements.",null,null,null,null,""]
[null,null,1,null,null,null,null,null,null,null,null,null,null,null,null,null,null,null,null,null,null,null,null,null,null,null,null,null,null,null,null,"SC 26.","Design infiltration stormwater elements to infiltrate have level bottoms or else check dams to promote more uniform infiltration.",null,null,null,null,""]
[null,null,1,null,null,null,null,null,null,null,null,null,null,null,null,null,null,null,null,null,null,null,null,null,null,null,null,null,null,null,null,"SC 27.","Design infiltration stormwater elements to have not been placed on fill, but on uncompacted (or scarified) subgrade.",null,null,null,null,""]
[null,null,1,null,null,null,null,null,null,null,null,null,null,null,null,null,null,null,null,null,null,null,null,null,null,null,null,null,null,null,null,"SC 28.","Design stormwater elements, including conveyance elements, to discharge in a controlled and non-erosive fashion, using level spreaders as possible to encourage sheet flow",null,null,null,null,""]
[null,null,1,null,null,null,null,null,null,null,null,null,null,null,null,null,null,null,null,null,null,null,null,null,null,null,null,null,null,null,null,"SC 29.","Provide accessible means of observing performance of stormwater elements such as cleanouts, observation wells, and/or maintenance ports for maintenance purposes.",null,null,null,null,""]
[null,null,1,null,null,null,null,null,null,null,null,null,null,null,null,null,null,null,null,null,null,null,null,null,null,null,null,null,null,null,null,"SC 30.","Provide robust and easily maintainable pretreatment mechanisms, including approved proprietary BMPs, to protect natural conveyances or stormwater elements from clogging or degradation especially in areas potentially containing excessive levels of silt and sediment or contaminated with oils, fuels, or grease.",null,null,null,null,""]
[null,null,1,null,null,null,null,null,null,null,null,null,null,null,null,null,null,null,null,null,null,null,null,null,null,null,null,null,null,null,null,"SC 31.","Protect stormwater elements against erosion and facilitate vegetation establishment by utilizing energy dissipators at inflows and/or biodegradable erosion control matting.",null,null,null,null,""]
[null,null,1,null,null,null,null,null,null,null,null,null,null,null,null,null,null,null,null,null,null,null,null,null,null,null,null,null,null,null,null,"SC 32.","Provide stabilized and controlled overflow mechanisms for larger storm events and/or provide bypass/diversion structures (design stormwater elements to be \"offline\"). ",null,null,null,null,""]
[null,null,1,null,null,null,null,null,null,null,null,null,null,null,null,null,null,null,null,null,null,null,null,null,null,null,null,null,null,null,null,"C04.6.2 Specific Criteria for Pervious Pavement",null,"Compliance\n(Yes, No, N/A)","Approval\n(Yes, No, N/A)","Comments"]
[null,null,1,null,null,null,null,null,null,null,null,null,null,null,null,null,null,null,null,null,null,null,null,null,null,null,null,null,null,null,null,"SC 33.","Ensure anticipated vehicular loading has been factored into design (perform structural analysis) for Pervious Pavement and Subsurface Storage & Infiltration solutions.",null,null,null,null,""]
[null,null,1,null,null,null,null,null,null,null,null,null,null,null,null,null,null,null,null,null,null,null,null,null,null,null,null,null,null,null,null,"SC 34.","Avoid placement in areas where there is the potential to contaminate existing soils (fuel areas, industrial storage, vehicle maintenance or service areas) or where there is high sediment loading potential.",null,null,null,null,""]
[null,null,1,null,null,null,null,null,null,null,null,null,null,null,null,null,null,null,null,null,null,null,null,null,null,null,null,null,null,null,null,"C04.6.3 Specific Criteria for Constructed Wetlands",null,"Compliance\n(Yes, No, N/A)","Approval\n(Yes, No, N/A)","Comments"]
[null,null,1,null,null,null,null,null,null,null,null,null,null,null,null,null,null,null,null,null,null,null,null,null,null,null,null,null,null,null,null,"SC 35.","Include a safety shelf (aquatic bench) with shrubs and tall grasses around the perimeter.",null,null,null,null,""]
[null,null,1,null,null,null,null,null,null,null,null,null,null,null,null,null,null,null,null,null,null,null,null,null,null,null,null,null,null,null,null,"SC 36.","Specify plant species and/or other features in accordance with BASH requirements.",null,null,null,null,""]
[null,null,1,null,null,null,null,null,null,null,null,null,null,null,null,null,null,null,null,null,null,null,null,null,null,null,null,null,null,null,null,"C04.6.4 Specific Criteria for Wet Ponds",null,"Compliance\n(Yes, No, N/A)","Approval\n(Yes, No, N/A)","Comments"]
[null,null,1,null,null,null,null,null,null,null,null,null,null,null,null,null,null,null,null,null,null,null,null,null,null,null,null,null,null,null,null,"SC 37.","Include a safety shelf (aquatic bench) with shrubs and tall grasses around the perimeter.",null,null,null,null,""]
[null,null,1,null,null,null,null,null,null,null,null,null,null,null,null,null,null,null,null,null,null,null,null,null,null,null,null,null,null,null,null,"SC 38.","Specify plant species and/or other features in accordance with BASH requirements.",null,null,null,null,""]
[null,null,1,null,null,null,null,null,null,null,null,null,null,null,null,null,null,null,null,null,null,null,null,null,null,null,null,null,null,null,null,"C04.6.5 Specific Criteria for Forested Basins/Surface Storage & Infiltration",null,"Compliance\n(Yes, No, N/A)","Approval\n(Yes, No, N/A)","Comments"]
[null,null,1,null,null,null,null,null,null,null,null,null,null,null,null,null,null,null,null,null,null,null,null,null,null,null,null,null,null,null,null,"SC 39.","Use longleaf pine trees and wiregrass and other native groundcover mix in the Forested Basin (Dry Pond) with Longleaf Pine Community.",null,null,null,null,""]
[null,null,1,null,null,null,null,null,null,null,null,null,null,null,null,null,null,null,null,null,null,null,null,null,null,null,null,null,null,null,null,"SC 40.","Vegetate Surface Storage & Infiltration Dry Ponds with native grasses. Do not use trees or plants more than 8 inches high.",null,null,null,null,""]
[null,null,{"$f":"IF($B$156=1,0,1)","v":1}]
[null,null,{"$f":"IF($B$156=1,0,1)","v":1}]
[null,null,{"$f":"IF($B$210=1,0,1)","v":1}]
[null,null,0,null,null,null,null,null,null,null,null,null,null,null,null,null,null,null,null,null,null,null,null,null,null,null,null,null,null,null,null,"C05 Sidewalks, Pathways & Trails",null,"Contractor \nCompliance","Reviewer \nApproval","Contractor Comments","Reviewer Comments","Completed/\nAccepted"]
[null,null,{"$f":"IF($B$210=1,0,1)","v":1},null,null,null,null,null,null,null,null,null,null,null,null,null,null,null,null,null,null,null,null,null,null,null,null,null,null,null,null,"C05.5.1.1 Crossings",null,"Compliance\n(Yes, No, N/A)","Approval\n(Yes, No, N/A)","Comments"]
[null,null,{"$f":"IF(AL212<>\"\",0,IF($B$210=1,0,1))","v":1},null,null,null,null,null,null,null,null,null,null,null,null,null,null,null,null,null,null,null,null,null,null,null,null,null,null,null,null,"SPTC 1.","Design pedestrian and/or bicycle crossings to be one vehicle length from roundabout points of entry. Include splitter islands for pedestrian/cyclist refuge.",null,null,null,null,{"$f":"IF(OR(AI212=\"Yes\",AI212=\"N/A\"),1,IF(AI212=\"No\",0,IF(OR(AH212=\"N/A\",AH212=\"\"),\"\",IF(AH212=\"Yes\",1,))))","v":""}]
[null,null,{"$f":"IF(AL213<>\"\",0,IF($B$210=1,0,1))","v":1},null,null,null,null,null,null,null,null,null,null,null,null,null,null,null,null,null,null,null,null,null,null,null,null,null,null,null,null,"SPTC 2.","Install Accessible Pedestrian Signal Systems at primary crossings and intersections. Use signalized systems, if applicable, and include Pedestrian Hybrid Beacons.",null,null,null,null,""]
[null,null,1,null,null,null,null,null,null,null,null,null,null,null,null,null,null,null,null,null,null,null,null,null,null,null,null,null,null,null,null,"SPTC 3.","Refer to applicable roadway design standards for crosswalk striping dimensions. ",null,null,null,null,""]
[null,null,1,null,null,null,null,null,null,null,null,null,null,null,null,null,null,null,null,null,null,null,null,null,null,null,null,null,null,null,null,"SPTC 4.","Include raised concrete crossings for all mid-block crossings.",null,null,null,null,""]
[null,null,1,null,null,null,null,null,null,null,null,null,null,null,null,null,null,null,null,null,null,null,null,null,null,null,null,null,null,null,null,"SPTC 5.","Use concrete inset only at enhanced crosswalks and include all plan elements. See Pedestrian Pavement (Sections C05.6.4 and C05.6.5) for color guidance.",null,null,null,null,""]
[null,null,1,null,null,null,null,null,null,null,null,null,null,null,null,null,null,null,null,null,null,null,null,null,null,null,null,null,null,null,null,"C05.5.1.2 On-street/Off-street Bicycle Facilities",null,"Compliance\n(Yes, No, N/A)","Approval\n(Yes, No, N/A)","Comments"]
[null,null,1,null,null,null,null,null,null,null,null,null,null,null,null,null,null,null,null,null,null,null,null,null,null,null,null,null,null,null,null,"SPTC 6. ","Include on-street bike lanes in new street designs that are a minimum of 6 feet wide.",null,null,null,null,""]
[null,null,1,null,null,null,null,null,null,null,null,null,null,null,null,null,null,null,null,null,null,null,null,null,null,null,null,null,null,null,null,"SPTC 7. ","Use Shared-Lane Markings where bicycle lanes are not feasible.",null,null,null,null,""]
[null,null,1,null,null,null,null,null,null,null,null,null,null,null,null,null,null,null,null,null,null,null,null,null,null,null,null,null,null,null,null,"SPTC 8.","Offset off-street bicycle facilities from the roadway so turning motorists have better visibility of the cyclists.",null,null,null,null,""]
[null,null,1,null,null,null,null,null,null,null,null,null,null,null,null,null,null,null,null,null,null,null,null,null,null,null,null,null,null,null,null,"C05.5.1.3 T-Intersection Plazas",null,"Compliance\n(Yes, No, N/A)","Approval\n(Yes, No, N/A)","Comments"]
[null,null,1,null,null,null,null,null,null,null,null,null,null,null,null,null,null,null,null,null,null,null,null,null,null,null,null,null,null,null,null,"SPTC 9.","Design the T-intersection plaza to encompass the extent of the intersections of sidewalks/shared-use paths along roadways.",null,null,null,null,""]
[null,null,1,null,null,null,null,null,null,null,null,null,null,null,null,null,null,null,null,null,null,null,null,null,null,null,null,null,null,null,null,"SPTC 10.","Use two types of enhanced pavements at sidewalk intersections and in the plaza behind the sidewalk. Use concrete edging between pavers and the landscaped area.",null,null,null,null,""]
[null,null,1,null,null,null,null,null,null,null,null,null,null,null,null,null,null,null,null,null,null,null,null,null,null,null,null,null,null,null,null,"SPTC 11.","Place a minimum of two benches and one bike storage rack when T-intersection is along a shared-use path or multi-modal path. See Section C07, Site Furnishings for furniture style and character.",null,null,null,null,""]
[null,null,1,null,null,null,null,null,null,null,null,null,null,null,null,null,null,null,null,null,null,null,null,null,null,null,null,null,null,null,null,"SPTC 12.","Include appropriate lighting at the T-intersection. See Section C09, Lighting, for lighting criteria.",null,null,null,null,""]
[null,null,1,null,null,null,null,null,null,null,null,null,null,null,null,null,null,null,null,null,null,null,null,null,null,null,null,null,null,null,null,"SPTC 13.","Include appropriate pedestrian wayfinding and informational signage. See Section C08, Pedestrian Signage, for criteria.",null,null,null,null,""]
[null,null,1,null,null,null,null,null,null,null,null,null,null,null,null,null,null,null,null,null,null,null,null,null,null,null,null,null,null,null,null,"SPTC 14.","Design T-intersection plaza landscaping treatment to include a ring of flowering trees. Place flowering trees at 25 feet on center with ground cover underneath.",null,null,null,null,""]
[null,null,1,null,null,null,null,null,null,null,null,null,null,null,null,null,null,null,null,null,null,null,null,null,null,null,null,null,null,null,null,"SPTC 15.","Use appropriate plant species; see the Maintained Zone Plant List.",null,null,null,null,""]
[null,null,1,null,null,null,null,null,null,null,null,null,null,null,null,null,null,null,null,null,null,null,null,null,null,null,null,null,null,null,null,"C05.5.2 Multi-Modal Spine: Flightline District",null,"Compliance\n(Yes, No, N/A)","Approval\n(Yes, No, N/A)","Comments"]
[null,null,1,null,null,null,null,null,null,null,null,null,null,null,null,null,null,null,null,null,null,null,null,null,null,null,null,null,null,null,null,"SPTC 16. ","Maintain an open and direct path from parking to primary and secondary facility entrances.",null,null,null,null,""]
[null,null,1,null,null,null,null,null,null,null,null,null,null,null,null,null,null,null,null,null,null,null,null,null,null,null,null,null,null,null,null,"SPTC 17.","Design the Flightline District Multi-Modal Spine to meet pavement and width guidelines. Provide all required elements (see plan/section checklists and reference other sections).",null,null,null,null,""]
[null,null,1,null,null,null,null,null,null,null,null,null,null,null,null,null,null,null,null,null,null,null,null,null,null,null,null,null,null,null,null,"SPTC 18.","Design the multi-modal path to be 14 feet wide, comprising a 10-foot-wide shared-use path of recycled asphalt and a 4-foot-wide concrete pedestrian path.",null,null,null,null,""]
[null,null,1,null,null,null,null,null,null,null,null,null,null,null,null,null,null,null,null,null,null,null,null,null,null,null,null,null,null,null,null,"SPTC 19.","Use specialty pavers in the Flightline District Multi-Modal Spine to facilitate easy access to underground utilities.",null,null,null,null,""]
[null,null,1,null,null,null,null,null,null,null,null,null,null,null,null,null,null,null,null,null,null,null,null,null,null,null,null,null,null,null,null,"SPTC 20.","Place benches as indicated on the design drawings, based on adjacent building occupancy and Facility Group type. See Section C07, Site Furnishings for furniture style and character.",null,null,null,null,""]
[null,null,1,null,null,null,null,null,null,null,null,null,null,null,null,null,null,null,null,null,null,null,null,null,null,null,null,null,null,null,null,"SPTC 21.","Include appropriate lighting at the Flightline District Multi-Modal Spine. See Section C09, Lighting, for lighting criteria.",null,null,null,null,""]
[null,null,1,null,null,null,null,null,null,null,null,null,null,null,null,null,null,null,null,null,null,null,null,null,null,null,null,null,null,null,null,"SPTC 22.","Include appropriate pedestrian wayfinding and informational signage. See Section C08, Pedestrian Signage, for criteria.",null,null,null,null,""]
[null,null,1,null,null,null,null,null,null,null,null,null,null,null,null,null,null,null,null,null,null,null,null,null,null,null,null,null,null,null,null,"SPTC 23. ","Provide three rows of planting beds at ground level. Plant only groundcover, shrubs, and small trees. ",null,null,null,null,""]
[null,null,1,null,null,null,null,null,null,null,null,null,null,null,null,null,null,null,null,null,null,null,null,null,null,null,null,null,null,null,null,"SPTC 24.","Place raised planting beds adjacent to parking areas, between the parking zone and the pedestrian zone. Plant groundcover, shrubs, and canopy trees.",null,null,null,null,""]
[null,null,1,null,null,null,null,null,null,null,null,null,null,null,null,null,null,null,null,null,null,null,null,null,null,null,null,null,null,null,null,"SPTC 25.","Incorporate a seat wall along the raised planting bed to create a barrier between parking and pedestrian zones.",null,null,null,null,""]
[null,null,1,null,null,null,null,null,null,null,null,null,null,null,null,null,null,null,null,null,null,null,null,null,null,null,null,null,null,null,null,"SPTC 26.","Provide ample soil volume for healthy, well-rooted tree planting.",null,null,null,null,""]
[null,null,1,null,null,null,null,null,null,null,null,null,null,null,null,null,null,null,null,null,null,null,null,null,null,null,null,null,null,null,null,"SPTC 27.","Space tree selections to provide shade to the pedestrian zone and seat wall. ",null,null,null,null,""]
[null,null,1,null,null,null,null,null,null,null,null,null,null,null,null,null,null,null,null,null,null,null,null,null,null,null,null,null,null,null,null,"C05.5.3.1 Non-Constricted Condition",null,null,"Approval\n(Yes, No, N/A)","Comments"]
[null,null,1,null,null,null,null,null,null,null,null,null,null,null,null,null,null,null,null,null,null,null,null,null,null,null,null,null,null,null,null,"SPTC 28.","Design the non-constricted Multi-Modal Spine corridor to be a minimum of 72 feet wide. Include a right of way (ROW) that is a minimum of 32 feet wide. Provide a minimum 20-foot-wide landscaping zone on each side of the ROW. ",null,null,null,null,""]
[null,null,1,null,null,null,null,null,null,null,null,null,null,null,null,null,null,null,null,null,null,null,null,null,null,null,null,null,null,null,null,"SPTC 29. ","Incorporate the antiterrorism (AT) setback within the ROW.",null,null,null,null,""]
[null,null,1,null,null,null,null,null,null,null,null,null,null,null,null,null,null,null,null,null,null,null,null,null,null,null,null,null,null,null,null,"SPTC 30.","Locate the pedestrian path on the south and west sides of the Multi-Modal Spine. Incorporate pedestrian path along the entire length of the Multi-Modal Spine. Use crossing striping, lighting, signage, and other safety and directional measures as needed.",null,null,null,null,""]
[null,null,1,null,null,null,null,null,null,null,null,null,null,null,null,null,null,null,null,null,null,null,null,null,null,null,null,null,null,null,null,"SPTC 31. ","Incorporate a landscaping median between the bike path and the AV path when space is available (minimum 72-foot overall spine width, with minimum 32-foot ROW). Design the median to have a minimum width of 10 feet. Locate the edge of AV path pavement at least 10 feet from the artificial lot line.",null,null,null,null,""]
[null,null,1,null,null,null,null,null,null,null,null,null,null,null,null,null,null,null,null,null,null,null,null,null,null,null,null,null,null,null,null,"SPTC 32.","Design landscaping and select tree species to generate abundant shade and create a natural look. Plant trees with tight spacing. Provide a maximum spacing of 35 feet between large canopy trees. ",null,null,null,null,""]
[null,null,1,null,null,null,null,null,null,null,null,null,null,null,null,null,null,null,null,null,null,null,null,null,null,null,null,null,null,null,null,"SPTC 33.","Plant trees along the south and west sides of the Multi-Modal Spine at an early stage to allow the canopy to establish.",null,null,null,null,""]
[null,null,1,null,null,null,null,null,null,null,null,null,null,null,null,null,null,null,null,null,null,null,null,null,null,null,null,null,null,null,null,"SPTC 34.","Plant a minimum of nine trees, to include a mix of canopy trees and flowering trees, within each 200-foot stretch of the Multi-Modal Spine. Stagger and cluster trees. ",null,null,null,null,""]
[null,null,1,null,null,null,null,null,null,null,null,null,null,null,null,null,null,null,null,null,null,null,null,null,null,null,null,null,null,null,null,"C05.5.3.2 Constricted Condition",null,null,"Approval\n(Yes, No, N/A)","Comments"]
[null,null,1,null,null,null,null,null,null,null,null,null,null,null,null,null,null,null,null,null,null,null,null,null,null,null,null,null,null,null,null,"SPTC 35.","Design the constricted Multi-Modal Spine corridor to be a minimum of 42 feet wide. Include a ROW that is a minimum of 32 feet wide. Provide a minimum 5-foot-wide landscaping zone on each side of the ROW. ",null,null,null,null,""]
[null,null,1,null,null,null,null,null,null,null,null,null,null,null,null,null,null,null,null,null,null,null,null,null,null,null,null,null,null,null,null,"SPTC 36.","Locate the pedestrian path on the south and west sides of the Multi-Modal Spine. Incorporate pedestrian path along the entire length the Multi-Modal Spine. Use crossing striping, lighting, signage, and other safety and directional measures as needed.",null,null,null,null,""]
[null,null,1,null,null,null,null,null,null,null,null,null,null,null,null,null,null,null,null,null,null,null,null,null,null,null,null,null,null,null,null,"SPTC 37.","Design landscaping and select tree species to generate abundant shade and create a natural look. Plant trees with tight spacing. Provide a maximum spacing of 35 feet between large canopy trees. ",null,null,null,null,""]
[null,null,1,null,null,null,null,null,null,null,null,null,null,null,null,null,null,null,null,null,null,null,null,null,null,null,null,null,null,null,null,"SPTC 38.","Plant trees along the south and west sides of the Multi-Modal Spine at an early stage to allow the canopy to establish.",null,null,null,null,""]
[null,null,1,null,null,null,null,null,null,null,null,null,null,null,null,null,null,null,null,null,null,null,null,null,null,null,null,null,null,null,null,"SPTC 39.","Plant a minimum of nine trees, to include a mix of canopy trees and flowering trees, within a 200-foot stretch of the Multi-Modal Spine. Stagger and cluster trees.",null,null,null,null,""]
[null,null,1,null,null,null,null,null,null,null,null,null,null,null,null,null,null,null,null,null,null,null,null,null,null,null,null,null,null,null,null,"C05.5.4.1 Shared-Use Paths",null,null,"Approval\n(Yes, No, N/A)","Comments"]
[null,null,1,null,null,null,null,null,null,null,null,null,null,null,null,null,null,null,null,null,null,null,null,null,null,null,null,null,null,null,null,"SPTC 40.","Provide code-compliant markings that clearly indicate travel direction and/or distinct bike and pedestrian zones.",null,null,null,null,""]
[null,null,1,null,null,null,null,null,null,null,null,null,null,null,null,null,null,null,null,null,null,null,null,null,null,null,null,null,null,null,null,"SPTC 41.","Locate shared-use paths where there is clear visibility between the users and any vehicles. ",null,null,null,null,""]
[null,null,1,null,null,null,null,null,null,null,null,null,null,null,null,null,null,null,null,null,null,null,null,null,null,null,null,null,null,null,null,"SPTC 42.","Provide a landscape buffer between the shared-use path and the street.",null,null,null,null,""]
[null,null,1,null,null,null,null,null,null,null,null,null,null,null,null,null,null,null,null,null,null,null,null,null,null,null,null,null,null,null,null,"C05.5.4.2 Multi-Use Paths",null,"Compliance\n(Yes, No, N/A)","Approval\n(Yes, No, N/A)","Comments"]
[null,null,1,null,null,null,null,null,null,null,null,null,null,null,null,null,null,null,null,null,null,null,null,null,null,null,null,null,null,null,null,"SPTC 43.","Provide code-compliant markings and change of paving materials to clearly indicate travel direction and/or distinct bike and pedestrian zones.",null,null,null,null,""]
[null,null,1,null,null,null,null,null,null,null,null,null,null,null,null,null,null,null,null,null,null,null,null,null,null,null,null,null,null,null,null,"SPTC 44.","Locate multi-use paths where there is clear visibility between the users and any vehicles. ",null,null,null,null,""]
[null,null,1,null,null,null,null,null,null,null,null,null,null,null,null,null,null,null,null,null,null,null,null,null,null,null,null,null,null,null,null,"SPTC 45.","Provide a landscape buffer between the multi-use path and the street.",null,null,null,null,""]
[null,null,1,null,null,null,null,null,null,null,null,null,null,null,null,null,null,null,null,null,null,null,null,null,null,null,null,null,null,null,null,"C05.5.4.3 Sidewalks & Pedestrian Paths",null,"Compliance\n(Yes, No, N/A)","Approval\n(Yes, No, N/A)","Comments"]
[null,null,1,null,null,null,null,null,null,null,null,null,null,null,null,null,null,null,null,null,null,null,null,null,null,null,null,null,null,null,null,"SPTC 46.","Design sidewalks and pedestrian paths to be a minimum of 6 feet wide and to meet paving requirements.",null,null,null,null,""]
[null,null,1,null,null,null,null,null,null,null,null,null,null,null,null,null,null,null,null,null,null,null,null,null,null,null,null,null,null,null,null,"C05.5.4.4 Recreational Trails",null,"Compliance\n(Yes, No, N/A)","Approval\n(Yes, No, N/A)","Comments"]
[null,null,1,null,null,null,null,null,null,null,null,null,null,null,null,null,null,null,null,null,null,null,null,null,null,null,null,null,null,null,null,"SPTC 47.","Provide trailheads with all required elements (see Section C05.5.5, Trailheads).",null,null,null,null,""]
[null,null,1,null,null,null,null,null,null,null,null,null,null,null,null,null,null,null,null,null,null,null,null,null,null,null,null,null,null,null,null,"SPTC 48.","Design recreational or coastal trails to be between 6 and 10 feet wide. Select INRMP-approved paving materials as defined by ecosystem.",null,null,null,null,""]
[null,null,1,null,null,null,null,null,null,null,null,null,null,null,null,null,null,null,null,null,null,null,null,null,null,null,null,null,null,null,null,"SPTC 49.","Design boardwalks and coastal trails to meet all plan element guidelines and applicable codes.",null,null,null,null,""]
[null,null,1,null,null,null,null,null,null,null,null,null,null,null,null,null,null,null,null,null,null,null,null,null,null,null,null,null,null,null,null,"C05.5.4.5 Sidewalk/Pathway Intersections",null,"Compliance\n(Yes, No, N/A)","Approval\n(Yes, No, N/A)","Comments"]
[null,null,1,null,null,null,null,null,null,null,null,null,null,null,null,null,null,null,null,null,null,null,null,null,null,null,null,null,null,null,null,"SPTC 50.","Use enhanced paving within the intersection circle to create visual awareness and increase safety.",null,null,null,null,""]
[null,null,1,null,null,null,null,null,null,null,null,null,null,null,null,null,null,null,null,null,null,null,null,null,null,null,null,null,null,null,null,"SPTC 51.","Provide a concrete mow edge between the shrub and groundcover planting bed and the native grass area.",null,null,null,null,""]
[null,null,1,null,null,null,null,null,null,null,null,null,null,null,null,null,null,null,null,null,null,null,null,null,null,null,null,null,null,null,null,"SPTC 52.","Design the intersection's planting layout to form a circle with a minimum radius of 30 feet. ",null,null,null,null,""]
[null,null,1,null,null,null,null,null,null,null,null,null,null,null,null,null,null,null,null,null,null,null,null,null,null,null,null,null,null,null,null,"SPTC 53.","Provide evergreen shrubs along the four sides of the intersection; each side must be a minimum of 20 long.",null,null,null,null,""]
[null,null,1,null,null,null,null,null,null,null,null,null,null,null,null,null,null,null,null,null,null,null,null,null,null,null,null,null,null,null,null,"SPTC 54.","Provide low evergreen groundcover behind the shrubs.",null,null,null,null,""]
[null,null,1,null,null,null,null,null,null,null,null,null,null,null,null,null,null,null,null,null,null,null,null,null,null,null,null,null,null,null,null,"C05.5.5 Trailheads"]
[null,null,{"$f":"IF(AL277<>\"\",0,IF($B$210=1,0,1))","v":1},null,null,null,null,null,null,null,null,null,null,null,null,null,null,null,null,null,null,null,null,null,null,null,null,null,null,null,null,"C05.5.5.1 Typical Trailheads",null,"Compliance\n(Yes, No, N/A)","Approval\n(Yes, No, N/A)","Comments"]
[null,null,1,null,null,null,null,null,null,null,null,null,null,null,null,null,null,null,null,null,null,null,null,null,null,null,null,null,null,null,null,"SPTC 55. ","Locate one trailhead every 1,000 feet along sidewalks and shared-use paths.",null,null,null,null,{"$f":"IF(OR(AI278=\"Yes\",AI278=\"N/A\"),1,IF(AI278=\"No\",0,IF(OR(AH278=\"N/A\",AH278=\"\"),\"\",IF(AH278=\"Yes\",1,))))","v":""}]
[null,null,1,null,null,null,null,null,null,null,null,null,null,null,null,null,null,null,null,null,null,null,null,null,null,null,null,null,null,null,null,"SPTC 56.","Design the trailhead to be a minimum of 20 feet wide at its widest point and a minimum of 60 feet long, including concrete edging, along the sidewalk or path. ",null,null,null,null,""]
[null,null,1,null,null,null,null,null,null,null,null,null,null,null,null,null,null,null,null,null,null,null,null,null,null,null,null,null,null,null,null,"SPTC 57.","Use pavers to provide enhanced pavement at trailhead locations. See Pedestrian Pavement (Section C05.6.4) for enhanced pavement and concrete edging treatment. ",null,null,null,null,""]
[null,null,1,null,null,null,null,null,null,null,null,null,null,null,null,null,null,null,null,null,null,null,null,null,null,null,null,null,null,null,null,"SPTC 58.","Plant one ring of flowering trees around the trailhead, with a minimum of five flowering trees per ring. ",null,null,null,null,""]
[null,null,1,null,null,null,null,null,null,null,null,null,null,null,null,null,null,null,null,null,null,null,null,null,null,null,null,null,null,null,null,"SPTC 59.","Place a minimum of one bench and a six-bay bike rack at each trailhead. See Section C07, Site Furnishings, for furniture style and character.",null,null,null,null,""]
[null,null,1,null,null,null,null,null,null,null,null,null,null,null,null,null,null,null,null,null,null,null,null,null,null,null,null,null,null,null,null,"SPTC 60.","Include appropriate lighting at the trailhead. See Section C09, Lighting, for lighting criteria.",null,null,null,null,""]
[null,null,1,null,null,null,null,null,null,null,null,null,null,null,null,null,null,null,null,null,null,null,null,null,null,null,null,null,null,null,null,"SPTC 61.","Include appropriate pedestrian wayfinding and informational signage. See Section C08, Pedestrian Signage, for criteria.",null,null,null,null,""]
[null,null,1,null,null,null,null,null,null,null,null,null,null,null,null,null,null,null,null,null,null,null,null,null,null,null,null,null,null,null,null,"C05.5.5.2 Trailhead at Mid-Block Crossing",null,"Compliance\n(Yes, No, N/A)","Approval\n(Yes, No, N/A)","Comments"]
[null,null,1,null,null,null,null,null,null,null,null,null,null,null,null,null,null,null,null,null,null,null,null,null,null,null,null,null,null,null,null,"SPTC 62.","Design trailhead to have a minimum 30-foot radius.",null,null,null,null,""]
[null,null,1,null,null,null,null,null,null,null,null,null,null,null,null,null,null,null,null,null,null,null,null,null,null,null,null,null,null,null,null,"SPTC 63.","Use pavers to provide enhanced pavement at trailhead locations.",null,null,null,null,""]
[null,null,1,null,null,null,null,null,null,null,null,null,null,null,null,null,null,null,null,null,null,null,null,null,null,null,null,null,null,null,null,"SPTC 64.","Install tactile warning surfaces before crosswalks. Refer to applicable roadway design standards.",null,null,null,null,""]
[null,null,1,null,null,null,null,null,null,null,null,null,null,null,null,null,null,null,null,null,null,null,null,null,null,null,null,null,null,null,null,"SPTC 65.","Place a minimum of two benches, one bike rack, and appropriate lighting at the trailhead. See Section C07, Site Furnishings, for furniture style and character.",null,null,null,null,""]
[null,null,1,null,null,null,null,null,null,null,null,null,null,null,null,null,null,null,null,null,null,null,null,null,null,null,null,null,null,null,null,"SPTC 66.","Incorporate signage at the trailhead as necessary. See Section C08, Pedestrian Signage for signage criteria.",null,null,null,null,""]
[null,null,1,null,null,null,null,null,null,null,null,null,null,null,null,null,null,null,null,null,null,null,null,null,null,null,null,null,null,null,null,"SPTC 67.","See Pavement section for enhanced pavement and concrete edging treatment.",null,null,null,null,""]
[null,null,1,null,null,null,null,null,null,null,null,null,null,null,null,null,null,null,null,null,null,null,null,null,null,null,null,null,null,null,null,"SPTC 68.","Install a ring of flowering trees around the trailhead. Use a minimum of four flowering trees per ring. ",null,null,null,null,""]
[null,null,1,null,null,null,null,null,null,null,null,null,null,null,null,null,null,null,null,null,null,null,null,null,null,null,null,null,null,null,null,"SPTC 69.","Install a minimum of one row of low evergreen shrubs and two rows of ornamental native grasses in the roadway amenity zone. Place plants from the edge of the Multi-Modal Spine pavement to the edge of the trailhead, at a minimum length. Use a triangular layout.",null,null,null,null,""]
[null,null,1,null,null,null,null,null,null,null,null,null,null,null,null,null,null,null,null,null,null,null,null,null,null,null,null,null,null,null,null,"SPTC 70.","Use appropriate plant species; see the Maintained Zone Plant List.",null,null,null,null,""]
[null,null,1,null,null,null,null,null,null,null,null,null,null,null,null,null,null,null,null,null,null,null,null,null,null,null,null,null,null,null,null,"C05.6.1 Walls"]
[null,null,1,null,null,null,null,null,null,null,null,null,null,null,null,null,null,null,null,null,null,null,null,null,null,null,null,null,null,null,null,"C05.6.1.1 Tall Wall (Above 4 Feet in Height)",null,"Compliance\n(Yes, No, N/A)","Approval\n(Yes, No, N/A)","Comments"]
[null,null,1,null,null,null,null,null,null,null,null,null,null,null,null,null,null,null,null,null,null,null,null,null,null,null,null,null,null,null,null,"SPTC 71.","Construct tall walls (higher than 4 feet) of modular block and include batter and weep holes for drainage. See IFS Design Intent: Architectural Image & Character for colors",null,null,null,null,""]
[null,null,1,null,null,null,null,null,null,null,null,null,null,null,null,null,null,null,null,null,null,null,null,null,null,null,null,null,null,null,null,"SPTC 72.","Provide a safety railing depending on the exact height of the wall.",null,null,null,null,""]
[null,null,1,null,null,null,null,null,null,null,null,null,null,null,null,null,null,null,null,null,null,null,null,null,null,null,null,null,null,null,null,"SPTC 73.","Provide landscaping to break up the sheer vertical face of the wall structure.",null,null,null,null,""]
[null,null,1,null,null,null,null,null,null,null,null,null,null,null,null,null,null,null,null,null,null,null,null,null,null,null,null,null,null,null,null,"C05.6.1.2 Short Wall (4 Feet and Below Height)",null,"Compliance\n(Yes, No, N/A)","Approval\n(Yes, No, N/A)","Comments"]
[null,null,1,null,null,null,null,null,null,null,null,null,null,null,null,null,null,null,null,null,null,null,null,null,null,null,null,null,null,null,null,"SPTC 74.","Construct short walls (4 feet and lower) of cast-in-place concrete with an architectural finish.",null,null,null,null,""]
[null,null,1,null,null,null,null,null,null,null,null,null,null,null,null,null,null,null,null,null,null,null,null,null,null,null,null,null,null,null,null,"C05.6.2 Screening",null,"Compliance\n(Yes, No, N/A)","Approval\n(Yes, No, N/A)","Comments"]
[null,null,1,null,null,null,null,null,null,null,null,null,null,null,null,null,null,null,null,null,null,null,null,null,null,null,null,null,null,null,null,"SPTC 75.","Provide screening materials and structure that are hurricane wind-resistant, flood resistant, saltwater-resistant, cost-effective, and durable. ",null,null,null,null,""]
[null,null,1,null,null,null,null,null,null,null,null,null,null,null,null,null,null,null,null,null,null,null,null,null,null,null,null,null,null,null,null,"C05.6.2.1 Outdoor Utility Yard & Dumpster Enclosures",null,"Compliance\n(Yes, No, N/A)","Approval\n(Yes, No, N/A)","Comments"]
[null,null,1,null,null,null,null,null,null,null,null,null,null,null,null,null,null,null,null,null,null,null,null,null,null,null,null,null,null,null,null,"SPTC 76.","Provide dumpster enclosure doors that are painted or powder-coated metal.",null,null,null,null,""]
[null,null,1,null,null,null,null,null,null,null,null,null,null,null,null,null,null,null,null,null,null,null,null,null,null,null,null,null,null,null,null,"SPTC 77.","Use steel gates and hardware and medium-tan dumpsters.",null,null,null,null,""]
[null,null,1,null,null,null,null,null,null,null,null,null,null,null,null,null,null,null,null,null,null,null,null,null,null,null,null,null,null,null,null,"SPTC 78.","Comply with UFC-3-201-02, Dumpster Enclosures, for dumpster enclosure and screening.",null,null,null,null,""]
[null,null,1,null,null,null,null,null,null,null,null,null,null,null,null,null,null,null,null,null,null,null,null,null,null,null,null,null,null,null,null,"C05.6.3 Grade Transitions & Stairs",null,"Compliance\n(Yes, No, N/A)","Approval\n(Yes, No, N/A)","Comments"]
[null,null,1,null,null,null,null,null,null,null,null,null,null,null,null,null,null,null,null,null,null,null,null,null,null,null,null,null,null,null,null,"SPTC 79.","Use cast-in-place concrete treads for stairways. Use non-slip broom finish, and enhance on based on the stairway's function and location.",null,null,null,null,""]
[null,null,1,null,null,null,null,null,null,null,null,null,null,null,null,null,null,null,null,null,null,null,null,null,null,null,null,null,null,null,null,"SPTC 80.","Design concrete stairs to be wide and provide anti-slip protection on the toe.",null,null,null,null,""]
[null,null,1,null,null,null,null,null,null,null,null,null,null,null,null,null,null,null,null,null,null,null,null,null,null,null,null,null,null,null,null,"SPTC 81.","Use materials, finishes, and colors on stairways leading to an adjacent building that are compatible with the building's architectural vernacular.",null,null,null,null,""]
[null,null,1,null,null,null,null,null,null,null,null,null,null,null,null,null,null,null,null,null,null,null,null,null,null,null,null,null,null,null,null,"SPTC 82.","Install incorporated aluminum tube handrails that are brushed finish and have stainless steel fasteners.",null,null,null,null,""]
[null,null,1,null,null,null,null,null,null,null,null,null,null,null,null,null,null,null,null,null,null,null,null,null,null,null,null,null,null,null,null,"C05.6.4 Pedestrian Paving: Enhanced Paving"]
[null,null,1,null,null,null,null,null,null,null,null,null,null,null,null,null,null,null,null,null,null,null,null,null,null,null,null,null,null,null,null,"C05.6.4.1 Concrete Unit Pavers",null,"Compliance\n(Yes, No, N/A)","Approval\n(Yes, No, N/A)","Comments"]
[null,null,1,null,null,null,null,null,null,null,null,null,null,null,null,null,null,null,null,null,null,null,null,null,null,null,null,null,null,null,null,"SPTC 83.","Use medium grey color, 4-inch by 8-inch pavers placed in a running bond pattern. Coordinate with other facility designs to ensure consistent grey color is used. ",null,null,null,null,""]
[null,null,1,null,null,null,null,null,null,null,null,null,null,null,null,null,null,null,null,null,null,null,null,null,null,null,null,null,null,null,null,"C05.6.4.2 Specialty Pavers with Tabby",null,"Compliance\n(Yes, No, N/A)","Approval\n(Yes, No, N/A)","Comments"]
[null,null,1,null,null,null,null,null,null,null,null,null,null,null,null,null,null,null,null,null,null,null,null,null,null,null,null,null,null,null,null,"SPTC 84.","Use specialty pavers with tabby at walkways and plazas around a building's the immediate perimeter. ",null,null,null,null,""]
[null,null,1,null,null,null,null,null,null,null,null,null,null,null,null,null,null,null,null,null,null,null,null,null,null,null,null,null,null,null,null,"SPTC 85.","Use specialty pavers with tabby to match the basis of design styles. Pavers should be rated appropriately for the anticipated structural load. See IFS Design Intent: Architectural Image & Character appendix for approved colors and materials. ",null,null,null,null,""]
[null,null,1,null,null,null,null,null,null,null,null,null,null,null,null,null,null,null,null,null,null,null,null,null,null,null,null,null,null,null,null,"SPTC 86.","Use large format pavers and subbase designed to withstand maintenance vehicles.",null,null,null,null,""]
[null,null,1,null,null,null,null,null,null,null,null,null,null,null,null,null,null,null,null,null,null,null,null,null,null,null,null,null,null,null,null,"SPTC 87.","Coordinate paver colors with building aesthetics.",null,null,null,null,""]
[null,null,1,null,null,null,null,null,null,null,null,null,null,null,null,null,null,null,null,null,null,null,null,null,null,null,null,null,null,null,null,"C05.6.4.3 Colored/Stamped Cast-in-Place Concrete",null,"Compliance\n(Yes, No, N/A)","Approval\n(Yes, No, N/A)","Comments"]
[null,null,1,null,null,null,null,null,null,null,null,null,null,null,null,null,null,null,null,null,null,null,null,null,null,null,null,null,null,null,null,"SPTC 88.","Install concrete havers in a running bond brick pattern using a standard brick size.",null,null,null,null,""]
[null,null,1,null,null,null,null,null,null,null,null,null,null,null,null,null,null,null,null,null,null,null,null,null,null,null,null,null,null,null,null,"SPTC 89.","Select integral color concrete with manufacturer's color matching Pantone 4685C or similar.",null,null,null,null,""]
[null,null,1,null,null,null,null,null,null,null,null,null,null,null,null,null,null,null,null,null,null,null,null,null,null,null,null,null,null,null,null,"SPTC 90.","Use concrete border band, standard grey color, and dimension to match concrete mow header.",null,null,null,null,""]
[null,null,1,null,null,null,null,null,null,null,null,null,null,null,null,null,null,null,null,null,null,null,null,null,null,null,null,null,null,null,null,"SPTC 91.","Do not place colored/stamped concrete over utilities. Use basic concrete or pavers only.",null,null,null,null,""]
[null,null,1,null,null,null,null,null,null,null,null,null,null,null,null,null,null,null,null,null,null,null,null,null,null,null,null,null,null,null,null,"C05.6.4.4 Cast-In-Place Concrete with Integrated Tabby",null,"Compliance\n(Yes, No, N/A)","Approval\n(Yes, No, N/A)","Comments"]
[null,null,1,null,null,null,null,null,null,null,null,null,null,null,null,null,null,null,null,null,null,null,null,null,null,null,null,null,null,null,null,"SPTC 92.","Use standard grey cement with integral crushed shell aggregate.",null,null,null,null,""]
[null,null,1,null,null,null,null,null,null,null,null,null,null,null,null,null,null,null,null,null,null,null,null,null,null,null,null,null,null,null,null,"SPTC 93.","Select an exposed crushed shell aggregate with non-directional broom finish.",null,null,null,null,""]
[null,null,1,null,null,null,null,null,null,null,null,null,null,null,null,null,null,null,null,null,null,null,null,null,null,null,null,null,null,null,null,"SPTC 94.","Use sawcut control joints and bituminous/joint filler expansion/construction joints.",null,null,null,null,""]
[null,null,1,null,null,null,null,null,null,null,null,null,null,null,null,null,null,null,null,null,null,null,null,null,null,null,null,null,null,null,null,"SPTC 95.","Refer to appropriate standards, specifications, requirements, and engineering documents as delineated for intended pavement use of items including, but not limited to, slab thickness, pressure/hardness, joint spacing, and reinforcing.",null,null,null,null,""]
[null,null,1,null,null,null,null,null,null,null,null,null,null,null,null,null,null,null,null,null,null,null,null,null,null,null,null,null,null,null,null,"C05.6.5.1 Cast-In-Place Concrete",null,"Compliance\n(Yes, No, N/A)","Approval\n(Yes, No, N/A)","Comments"]
[null,null,1,null,null,null,null,null,null,null,null,null,null,null,null,null,null,null,null,null,null,null,null,null,null,null,null,null,null,null,null,"SPTC 96.","Use cast-in-place concrete slabs for consistent aesthetics and the ease of construction and maintenance.",null,null,null,null,""]
[null,null,1,null,null,null,null,null,null,null,null,null,null,null,null,null,null,null,null,null,null,null,null,null,null,null,null,null,null,null,null,"SPTC 97.","Provide a broom or retardant finish, standard grey color with sawcut joints.",null,null,null,null,""]
[null,null,1,null,null,null,null,null,null,null,null,null,null,null,null,null,null,null,null,null,null,null,null,null,null,null,null,null,null,null,null,"C05.6.6 Pervious Pavement Guidelines",null,"Compliance\n(Yes, No, N/A)","Approval\n(Yes, No, N/A)","Comments"]
[null,null,1,null,null,null,null,null,null,null,null,null,null,null,null,null,null,null,null,null,null,null,null,null,null,null,null,null,null,null,null,"SPTC 98.","Use pervious pavers in earth-tone colors that correspond with the surrounding building designs. Use a simple running bond or square tile pattern. ",null,null,null,null,""]
[null,null,1,null,null,null,null,null,null,null,null,null,null,null,null,null,null,null,null,null,null,null,null,null,null,null,null,null,null,null,null,"SPTC 99.","Design the pervious pavement area so the total area draining does not exceed the area of the pervious pavement itself. Provide sufficient pretreatment for larger areas that drain on to pervious pavement and send runoff directly into a storage reservoir.",null,null,null,null,""]
[null,null,1,null,null,null,null,null,null,null,null,null,null,null,null,null,null,null,null,null,null,null,null,null,null,null,null,null,null,null,null,"SPTC 100.","Provide backup surface drains as a secondary inflow mechanism to the storage reservoir in the event of pervious pavement clogging.",null,null,null,null,""]
[null,null,1,null,null,null,null,null,null,null,null,null,null,null,null,null,null,null,null,null,null,null,null,null,null,null,null,null,null,null,null,"C05.6.7 Specialty Pavers",null,"Compliance\n(Yes, No, N/A)","Approval\n(Yes, No, N/A)","Comments"]
[null,null,1,null,null,null,null,null,null,null,null,null,null,null,null,null,null,null,null,null,null,null,null,null,null,null,null,null,null,null,null,"SPTC 101.","Use specialty pavers in the Multi-Modal Spine designed to be easily removed for maintenance and underground utility repair purposes and reinstalled. Provide lifting hardware that complies with ABA criteria. ",null,null,null,null,""]
[null,null,1,null,null,null,null,null,null,null,null,null,null,null,null,null,null,null,null,null,null,null,null,null,null,null,null,null,null,null,null,"SPTC 102.","Select specialty pavers made of integral colored concrete in two different colors (A and B) and place in a running bond pattern. ",null,null,null,null,{"$f":"IF(OR(AI340=\"Yes\",AI340=\"N/A\"),1,IF(AI340=\"No\",0,IF(OR(AH340=\"N/A\",AH340=\"\"),\"\",IF(AH340=\"Yes\",1,))))","v":""}]
[null,null,{"$f":"IF(AL341<>\"\",0,IF($B$210=1,0,1))","v":1},null,null,null,null,null,null,null,null,null,null,null,null,null,null,null,null,null,null,null,null,null,null,null,null,null,null,null,null,"SPTC 103.","Select specialty pavers rated to withstand light vehicular loads.",null,null,null,null,""]
[null,null,1,null,null,null,null,null,null,null,null,null,null,null,null,null,null,null,null,null,null,null,null,null,null,null,null,null,null,null,null,"C05.7.1 Coastal Zone Pedestrian Surfaces",null,"Compliance\n(Yes, No, N/A)","Approval\n(Yes, No, N/A)","Comments"]
[null,null,1,null,null,null,null,null,null,null,null,null,null,null,null,null,null,null,null,null,null,null,null,null,null,null,null,null,null,null,null,"SPTC 104.","Follow all regulatory requirements for the design and construction of improvements occurring in the Coastal Zone.",null,null,null,null,""]
[null,null,1,null,null,null,null,null,null,null,null,null,null,null,null,null,null,null,null,null,null,null,null,null,null,null,null,null,null,null,null,"SPTC 105.","Use only material suitable for a marine environment and resistant to fuels, oil, fire, flooding, heat, wind, and ultraviolet (UV) light. ",null,null,null,null,""]
[null,null,1,null,null,null,null,null,null,null,null,null,null,null,null,null,null,null,null,null,null,null,null,null,null,null,null,null,null,null,null,"SPTC 106.","Construct paths using boardwalk or crushed compacted aggregate.",null,null,null,null,""]
[null,null,1,null,null,null,null,null,null,null,null,null,null,null,null,null,null,null,null,null,null,null,null,null,null,null,null,null,null,null,null,"SPTC 107.","Use poured-in-place concrete where hardened surfaces are required that matches the standards for pedestrian paving.",null,null,null,null,""]
[null,null,1,null,null,null,null,null,null,null,null,null,null,null,null,null,null,null,null,null,null,null,null,null,null,null,null,null,null,null,null,"C05.7.2 Coastal Zone Boardwalks",null,null,"Approval\n(Yes, No, N/A)","Comments"]
[null,null,1,null,null,null,null,null,null,null,null,null,null,null,null,null,null,null,null,null,null,null,null,null,null,null,null,null,null,null,null,"SPTC 108.","Follow state and local codes specific to the local condition and environment when selecting boardwalk materials, alignment, elevation, and relative height to grade.",null,null,null,null,""]
[null,null,1,null,null,null,null,null,null,null,null,null,null,null,null,null,null,null,null,null,null,null,null,null,null,null,null,null,null,null,null,"SPTC 109.","Design boardwalks to comply with Americans with Disabilities Act (ADA) standards and incorporate handrails where necessary.",null,null,null,null,""]
[null,null,1,null,null,null,null,null,null,null,null,null,null,null,null,null,null,null,null,null,null,null,null,null,null,null,null,null,null,null,null,"SPTC 110.","Use only material suitable for a marine environment and resistant to fuels, oil, fire, flooding, heat, wind, and UV light. Use materials and fasteners that are environmentally safe. ",null,null,null,null,""]
[null,null,1,null,null,null,null,null,null,null,null,null,null,null,null,null,null,null,null,null,null,null,null,null,null,null,null,null,null,null,null,"C05.7.3 Floating & Fixed Piers",null,null,"Approval\n(Yes, No, N/A)","Comments"]
[null,null,1,null,null,null,null,null,null,null,null,null,null,null,null,null,null,null,null,null,null,null,null,null,null,null,null,null,null,null,null,"SPTC 111. ","Comply with wind load criteria.",null,null,null,null,""]
[null,null,1,null,null,null,null,null,null,null,null,null,null,null,null,null,null,null,null,null,null,null,null,null,null,null,null,null,null,null,null,"SPTC 112. ","Comply with criteria for water currents.",null,null,null,null,""]
[null,null,1,null,null,null,null,null,null,null,null,null,null,null,null,null,null,null,null,null,null,null,null,null,null,null,null,null,null,null,null,"SPTC 113. ","Design structures to withstand waves from locally generated wind, boats wakes, and swells from offshore storms.",null,null,null,null,""]
[null,null,1,null,null,null,null,null,null,null,null,null,null,null,null,null,null,null,null,null,null,null,null,null,null,null,null,null,null,null,null,"SPTC 114. ","Design structures to be resistant to impacts or accumulations from floating debris.",null,null,null,null,""]
[null,null,1,null,null,null,null,null,null,null,null,null,null,null,null,null,null,null,null,null,null,null,null,null,null,null,null,null,null,null,null,"SPTC 115. ","Design structures to withstand floods and surges that produce extreme water levels and currents.",null,null,null,null,""]
[null,null,1,null,null,null,null,null,null,null,null,null,null,null,null,null,null,null,null,null,null,null,null,null,null,null,null,null,null,null,null,"SPTC 116. ","Use concrete or composite (wood-plastic) surface material. Decking surface is textured for skid resistance.",null,null,null,null,""]
[null,null,1,null,null,null,null,null,null,null,null,null,null,null,null,null,null,null,null,null,null,null,null,null,null,null,null,null,null,null,null,"SPTC 117.","Use surface material that resists abrasion, denting from dropped objects, and cracking. Provide positive drainage.",null,null,null,null,""]
[null,null,1,null,null,null,null,null,null,null,null,null,null,null,null,null,null,null,null,null,null,null,null,null,null,null,null,null,null,null,null,"C05.7.4 Dock Surface & Piles",null,null,"Approval\n(Yes, No, N/A)","Comments"]
[null,null,1,null,null,null,null,null,null,null,null,null,null,null,null,null,null,null,null,null,null,null,null,null,null,null,null,null,null,null,null,"SPTC 118. ","Connect dock float sections using stainless-steel hardware; the connection system must account for fluctuation in water depth, wind, and wave exposure. ",null,null,null,null,""]
[null,null,1,null,null,null,null,null,null,null,null,null,null,null,null,null,null,null,null,null,null,null,null,null,null,null,null,null,null,null,null,"SPTC 119. ","Use support piles composed of either precast, prestressed concrete piles no less than 12 inches square or composite piles no less than 12 inches in diameter with final sizing determined by structural loads.",null,null,null,null,""]
[null,null,1,null,null,null,null,null,null,null,null,null,null,null,null,null,null,null,null,null,null,null,null,null,null,null,null,null,null,null,null,"SPTC 120. ","Embed piles below the design water depth to resist all uplift and lateral loads resulting from the loads Provide a Factor of Safety of no less than 1.2 for the extreme wind, wave, and surge forces and no less than 1.5 for operating loads.",null,null,null,null,""]
[null,null,1,null,null,null,null,null,null,null,null,null,null,null,null,null,null,null,null,null,null,null,null,null,null,null,null,null,null,null,null,"SPTC 121. ","Provide a cone-shaped pile cap composed of galvanized steel, stainless steel, fiberglass, or composite material. ",null,null,null,null,""]
[null,null,1,null,null,null,null,null,null,null,null,null,null,null,null,null,null,null,null,null,null,null,null,null,null,null,null,null,null,null,null,"C05.7.5 Coastal Zone Shelters & Observation Platforms",null,null,"Approval\n(Yes, No, N/A)","Comments"]
[null,null,1,null,null,null,null,null,null,null,null,null,null,null,null,null,null,null,null,null,null,null,null,null,null,null,null,null,null,null,null,"SPTC 122. ","Follow all regulatory requirements for design and construction of improvements occurring in the Coastal Zone and its environs.",null,null,null,null,""]
[null,null,1,null,null,null,null,null,null,null,null,null,null,null,null,null,null,null,null,null,null,null,null,null,null,null,null,null,null,null,null,"SPTC 123.","Locate shelters and platforms such that they provide convenient access to trails and boardwalks.",null,null,null,null,""]
[null,null,1,null,null,null,null,null,null,null,null,null,null,null,null,null,null,null,null,null,null,null,null,null,null,null,null,null,null,null,null,"SPTC 124.","Design and locate all structures so they minimize any unsightly intrusion to the natural character of the area. ",null,null,null,null,""]
[null,null,1,null,null,null,null,null,null,null,null,null,null,null,null,null,null,null,null,null,null,null,null,null,null,null,null,null,null,null,null,"SPTC 125.","Design all shelters and structures to comply with ADA standards and incorporate handrails where necessary. ",null,null,null,null,""]
[null,null,1,null,null,null,null,null,null,null,null,null,null,null,null,null,null,null,null,null,null,null,null,null,null,null,null,null,null,null,null,"SPTC 126.","Use materials and fasteners that are suitable for a saltwater marine environment and are resistant to fuels, oil, fire, flooding, heat, wind, and UV light. Use materials and fasteners that are environmentally safe.",null,null,null,null,""]
[null,null,{"$f":"IF($B$210=1,0,1)","v":1}]
[null,null,1]
[null,null,1]
[null,null,0,null,null,null,null,null,null,null,null,null,null,null,null,null,null,null,null,null,null,null,null,null,null,null,null,null,null,null,null,"C06 Landscape ",null,"Contractor \nCompliance","Reviewer \nApproval","Contractor Comments","Reviewer Comments","Completed/\nAccepted"]
[null,null,{"$f":"IF($B$373=1,0,1)","v":1},null,null,null,null,null,null,null,null,null,null,null,null,null,null,null,null,null,null,null,null,null,null,null,null,null,null,null,null,"C06.4.2.2 Building Entrances",null,"Compliance\n(Yes, No, N/A)","Approval\n(Yes, No, N/A)","Comments"]
[null,null,{"$f":"IF(AL375<>\"\",0,IF($B$373=1,0,1))","v":1},null,null,null,null,null,null,null,null,null,null,null,null,null,null,null,null,null,null,null,null,null,null,null,null,null,null,null,null,"LaC 1.","Place landscape so it frames the building entrance and highlights the front entry.",null,null,null,null,{"$f":"IF(OR(AI375=\"Yes\",AI375=\"N/A\"),1,IF(AI375=\"No\",0,IF(OR(AH375=\"N/A\",AH375=\"\"),\"\",IF(AH375=\"Yes\",1,))))","v":""}]
[null,null,{"$f":"IF(AL376<>\"\",0,IF($B$373=1,0,1))","v":1},null,null,null,null,null,null,null,null,null,null,null,null,null,null,null,null,null,null,null,null,null,null,null,null,null,null,null,null,"LaC 2.","Use enhanced pavement at Group 1 buildings to form a small gathering plaza as part of the entrance. ",null,null,null,null,""]
[null,null,1,null,null,null,null,null,null,null,null,null,null,null,null,null,null,null,null,null,null,null,null,null,null,null,null,null,null,null,null,"LaC 3.","Provide direct connections from the building entrance pedestrian routes to the base Multi-Modal Spine and/or shared-use paths.",null,null,null,null,""]
[null,null,1,null,null,null,null,null,null,null,null,null,null,null,null,null,null,null,null,null,null,null,null,null,null,null,null,null,null,null,null,"LaC 4.","Use plantings for housing/dormitories that create a safe and welcoming facility entrance.",null,null,null,null,""]
[null,null,1,null,null,null,null,null,null,null,null,null,null,null,null,null,null,null,null,null,null,null,null,null,null,null,null,null,null,null,null,"LaC 5.","Use plantings with color and interest to frame the entrances to Group 1 facilities and buildings of special importance.",null,null,null,null,""]
[null,null,1,null,null,null,null,null,null,null,null,null,null,null,null,null,null,null,null,null,null,null,null,null,null,null,null,null,null,null,null,"C06.4.3.1 Parking Area Islands",null,"Compliance\n(Yes, No, N/A)","Approval\n(Yes, No, N/A)","Comments"]
[null,null,1,null,null,null,null,null,null,null,null,null,null,null,null,null,null,null,null,null,null,null,null,null,null,null,null,null,null,null,null,"LaC 6.","Plant native shrubs and grasses less than 3 feet tall that can withstand periodic flooding.",null,null,null,null,""]
[null,null,1,null,null,null,null,null,null,null,null,null,null,null,null,null,null,null,null,null,null,null,null,null,null,null,null,null,null,null,null,"LaC 7.","Dip parking area islands to the center so they can collect water through curb cuts or other gaps in the curbing.",null,null,null,null,""]
[null,null,1,null,null,null,null,null,null,null,null,null,null,null,null,null,null,null,null,null,null,null,null,null,null,null,null,null,null,null,null,"LaC 8.","Use deciduous and evergreen mix for seasonal appeal.",null,null,null,null,""]
[null,null,1,null,null,null,null,null,null,null,null,null,null,null,null,null,null,null,null,null,null,null,null,null,null,null,null,null,null,null,null,"LaC 9.","Provide swales with an outlet from the parking area to accommodate overflow.",null,null,null,null,""]
[null,null,1,null,null,null,null,null,null,null,null,null,null,null,null,null,null,null,null,null,null,null,null,null,null,null,null,null,null,null,null,"LaC 10.","Comply with IFS requirements for Landscape Treatments, Site and Surface Parking, and Interior Surface Parking Landscaping Requirements.",null,null,null,null,""]
[null,null,1,null,null,null,null,null,null,null,null,null,null,null,null,null,null,null,null,null,null,null,null,null,null,null,null,null,null,null,null,"C06.4.3.2 Trails, Bikeways & Open Areas",null,"Compliance\n(Yes, No, N/A)","Approval\n(Yes, No, N/A)","Comments"]
[null,null,1,null,null,null,null,null,null,null,null,null,null,null,null,null,null,null,null,null,null,null,null,null,null,null,null,null,null,null,null,"LaC 11.","Provide a plant mix of native trees, shrubs, and grasses on both sides off trails.",null,null,null,null,""]
[null,null,1,null,null,null,null,null,null,null,null,null,null,null,null,null,null,null,null,null,null,null,null,null,null,null,null,null,null,null,null,"LaC 12.","Use grass that can be mowed for the first 5 feet on each side of the trail.",null,null,null,null,""]
[null,null,1,null,null,null,null,null,null,null,null,null,null,null,null,null,null,null,null,null,null,null,null,null,null,null,null,null,null,null,null,"LaC 13.","Use a seed mix of various native grasses, wildflowers, and shrubs in large open areas. ",null,null,null,null,""]
[null,null,1,null,null,null,null,null,null,null,null,null,null,null,null,null,null,null,null,null,null,null,null,null,null,null,null,null,null,null,null,"C06.4.3.3 Roadways",null,"Compliance\n(Yes, No, N/A)","Approval\n(Yes, No, N/A)","Comments"]
[null,null,1,null,null,null,null,null,null,null,null,null,null,null,null,null,null,null,null,null,null,null,null,null,null,null,null,null,null,null,null,"LaC 14.","Plant the area between the curb and the sidewalk with large and medium trees and a mix of native grasses and flowers (maximum height of 24 inches).",null,null,null,null,""]
[null,null,1,null,null,null,null,null,null,null,null,null,null,null,null,null,null,null,null,null,null,null,null,null,null,null,null,null,null,null,null,"LaC 15.","Use plants that can withstand flooding in roadway swales.",null,null,null,null,""]
[null,null,1,null,null,null,null,null,null,null,null,null,null,null,null,null,null,null,null,null,null,null,null,null,null,null,null,null,null,null,null,"LaC 16.","Mow once a year to reduce weeds and help the wildflowers reseed.",null,null,null,null,""]
[null,null,1,null,null,null,null,null,null,null,null,null,null,null,null,null,null,null,null,null,null,null,null,null,null,null,null,null,null,null,null,"LaC 17.","Plant trees in a staggered, clustered pattern.",null,null,null,null,""]
[null,null,1,null,null,null,null,null,null,null,null,null,null,null,null,null,null,null,null,null,null,null,null,null,null,null,null,null,null,null,null,"LaC 18.","Plant trees at least 5 feet away from utilities. ",null,null,null,null,""]
[null,null,1,null,null,null,null,null,null,null,null,null,null,null,null,null,null,null,null,null,null,null,null,null,null,null,null,null,null,null,null,"C06.4.4 Airfield Zone"]
[null,null,1,null,null,null,null,null,null,null,null,null,null,null,null,null,null,null,null,null,null,null,null,null,null,null,null,null,null,null,null,"C06.4.4.1 Airfield Zone Planting Design Criteria",null,"Compliance\n(Yes, No, N/A)","Approval\n(Yes, No, N/A)","Comments"]
[null,null,1,null,null,null,null,null,null,null,null,null,null,null,null,null,null,null,null,null,null,null,null,null,null,null,null,null,null,null,null,"LaC 19.","Plant only native turf grasses from the approved plant list. Trees and shrubs are not allowed.",null,null,null,null,""]
[null,null,1,null,null,null,null,null,null,null,null,null,null,null,null,null,null,null,null,null,null,null,null,null,null,null,null,null,null,null,null,"LaC 20.","Verify that all airfield planting is approved by Tyndall AFB.",null,null,null,null,""]
[null,null,1,null,null,null,null,null,null,null,null,null,null,null,null,null,null,null,null,null,null,null,null,null,null,null,null,null,null,null,null,"LaC 21.","Use shrubs that are a mix of deciduous and coniferous species. ",null,null,null,null,""]
[null,null,1,null,null,null,null,null,null,null,null,null,null,null,null,null,null,null,null,null,null,null,null,null,null,null,null,null,null,null,null,"LaC 22.","Use shrubs that grow at various heights to prevent uniform and continuous habitat cover. ",null,null,null,null,""]
[null,null,1,null,null,null,null,null,null,null,null,null,null,null,null,null,null,null,null,null,null,null,null,null,null,null,null,null,null,null,null,"LaC 23.","Use sterile (non-fruiting) varieties or male varieties of shrubs to prevent seeds and berries from attracting birds and wildlife. ",null,null,null,null,""]
[null,null,1,null,null,null,null,null,null,null,null,null,null,null,null,null,null,null,null,null,null,null,null,null,null,null,null,null,null,null,null,"LaC 24.","Plant shrubs, groundcovers, and bunch grass in groups up to five individuals. Include a maximum of two individual Pinxster azaleas per group of shrubs, groundcovers, and bunch grass.",null,null,null,null,""]
[null,null,1,null,null,null,null,null,null,null,null,null,null,null,null,null,null,null,null,null,null,null,null,null,null,null,null,null,null,null,null,"LaC 25.","Plant shrubs a minimum of 10 feet from any other group of planting. ",null,null,null,null,""]
[null,null,1,null,null,null,null,null,null,null,null,null,null,null,null,null,null,null,null,null,null,null,null,null,null,null,null,null,null,null,null,"LaC 26.","Maintain all trees in the Flightline in accordance with airfield obstruction standards.",null,null,null,null,""]
[null,null,1,null,null,null,null,null,null,null,null,null,null,null,null,null,null,null,null,null,null,null,null,null,null,null,null,null,null,null,null,"LaC 27.","Do not plant sycamore trees within 1,250 feet of the nearest runway center line.",null,null,null,null,""]
[null,null,1,null,null,null,null,null,null,null,null,null,null,null,null,null,null,null,null,null,null,null,null,null,null,null,null,null,null,null,null,"C06.4.4.2 Airfield Zone Multi-Modal Spine Design Planting Criteria",null,"Compliance\n(Yes, No, N/A)","Approval\n(Yes, No, N/A)","Comments"]
[null,null,1,null,null,null,null,null,null,null,null,null,null,null,null,null,null,null,null,null,null,null,null,null,null,null,null,null,null,null,null,"LaC 28.","Select and plant trees and shrubs in a manner that reduces attractiveness to wildlife. ",null,null,null,null,""]
[null,null,1,null,null,null,null,null,null,null,null,null,null,null,null,null,null,null,null,null,null,null,null,null,null,null,null,null,null,null,null,"LaC 29.","Select tree species that are columnar in shape with vertical branching structures that minimize perching and nesting opportunities for birds. Use sterile (non-fruiting) varieties of trees.",null,null,null,null,""]
[null,null,1,null,null,null,null,null,null,null,null,null,null,null,null,null,null,null,null,null,null,null,null,null,null,null,null,null,null,null,null,"LaC 30.","Select trees that have varied canopy types and heights at planting and at maturity. Design tree spacing so the crowns have a minimum separation of 15 feet once trees are mature. Install trees so canopy overlap into the clear space is not possible during any season.",null,null,null,null,""]
[null,null,1,null,null,null,null,null,null,null,null,null,null,null,null,null,null,null,null,null,null,null,null,null,null,null,null,null,null,null,null,"LaC 31.","Plant shrubs a minimum of 10 feet from any trees. ",null,null,null,null,""]
[null,null,1,null,null,null,null,null,null,null,null,null,null,null,null,null,null,null,null,null,null,null,null,null,null,null,null,null,null,null,null,"LaC 32.","Select shrubs that are a mix of deciduous and coniferous species. Use sterile (non-fruiting) or male varieties of shrubs to prevent seeds and berries from attracting birds and wildlife.",null,null,null,null,""]
[null,null,1,null,null,null,null,null,null,null,null,null,null,null,null,null,null,null,null,null,null,null,null,null,null,null,null,null,null,null,null,"LaC 33.","Verify that all planting is approved by the BASH Team.",null,null,null,null,""]
[null,null,1,null,null,null,null,null,null,null,null,null,null,null,null,null,null,null,null,null,null,null,null,null,null,null,null,null,null,null,null,"C06.4.5 Managed Zone"]
[null,null,1,null,null,null,null,null,null,null,null,null,null,null,null,null,null,null,null,null,null,null,null,null,null,null,null,null,null,null,null,"C06.4.5.1 Managed Zone Planting Design Criteria",null,"Compliance\n(Yes, No, N/A)","Approval\n(Yes, No, N/A)","Comments"]
[null,null,1,null,null,null,null,null,null,null,null,null,null,null,null,null,null,null,null,null,null,null,null,null,null,null,null,null,null,null,null,"LaC 34.","Align planting within the Managed Zone with the INRMP and support the installation’s ecosystem initiatives as a part of a broader integrated resilient environmental infrastructure system.",null,null,null,null,""]
[null,null,1,null,null,null,null,null,null,null,null,null,null,null,null,null,null,null,null,null,null,null,null,null,null,null,null,null,null,null,null,"C06.4.6 Coastal Zone"]
[null,null,1,null,null,null,null,null,null,null,null,null,null,null,null,null,null,null,null,null,null,null,null,null,null,null,null,null,null,null,null,"C06.4.6.1 Coastal Zone Planting Design Criteria",null,"Compliance\n(Yes, No, N/A)","Approval\n(Yes, No, N/A)","Comments"]
[null,null,1,null,null,null,null,null,null,null,null,null,null,null,null,null,null,null,null,null,null,null,null,null,null,null,null,null,null,null,null,"LaC 35.","Align planting within the Coastal Zone with the INRMP and support the installation’s ecosystem initiatives as a part of a broader integrated resilient environmental infrastructure system.",null,null,null,null,""]
[null,null,1,null,null,null,null,null,null,null,null,null,null,null,null,null,null,null,null,null,null,null,null,null,null,null,null,null,null,null,null,"C06.5 Treatments For Specific Areas   "]
[null,null,1,null,null,null,null,null,null,null,null,null,null,null,null,null,null,null,null,null,null,null,null,null,null,null,null,null,null,null,null,"C06.5.1 Driveway Landscape Treatments",null,"Compliance\n(Yes, No, N/A)","Approval\n(Yes, No, N/A)","Comments"]
[null,null,1,null,null,null,null,null,null,null,null,null,null,null,null,null,null,null,null,null,null,null,null,null,null,null,null,null,null,null,null,"LaC 36.","Plant large canopy trees along the driveway access between sidewalks and the back of the curb. ",null,null,null,null,""]
[null,null,1,null,null,null,null,null,null,null,null,null,null,null,null,null,null,null,null,null,null,null,null,null,null,null,null,null,null,null,null,"LaC 37.","Provide an amenity zone that has a minimum width of 10 feet. ",null,null,null,null,""]
[null,null,1,null,null,null,null,null,null,null,null,null,null,null,null,null,null,null,null,null,null,null,null,null,null,null,null,null,null,null,null,"LaC 38.","Plant a single row of trees in amenity zones that are less than 20 feet wide, spaced at 30 feet on center. ",null,null,null,null,""]
[null,null,1,null,null,null,null,null,null,null,null,null,null,null,null,null,null,null,null,null,null,null,null,null,null,null,null,null,null,null,null,"LaC 39.","Plant trees in a staggered form and use a mix of large canopy tree and small canopy tree in amenity zones that are equal to or greater than 20 feet wide.",null,null,null,null,""]
[null,null,1,null,null,null,null,null,null,null,null,null,null,null,null,null,null,null,null,null,null,null,null,null,null,null,null,null,null,null,null,"LaC 40.","Use 3-foot horizontal clearance from edge of travel lane and 2-foot horizontal clearance from the edge of sidewalks/shared-use paths.",null,null,null,null,""]
[null,null,1,null,null,null,null,null,null,null,null,null,null,null,null,null,null,null,null,null,null,null,null,null,null,null,null,null,null,null,null,"C06.5.2 Pedestrian Refuge Islands & Medians ",null,"Compliance\n(Yes, No, N/A)","Approval\n(Yes, No, N/A)","Comments"]
[null,null,1,null,null,null,null,null,null,null,null,null,null,null,null,null,null,null,null,null,null,null,null,null,null,null,null,null,null,null,null,"LaC 41.","Use a mix of evergreen and flowering shrubs as ground level planting and canopy trees when the median is 10 feet wide or more. Trees should be spaced at 20-30 feet depending on the species and canopy size. Maintain a minimum 6-foot clear trunk height.",null,null,null,null,""]
[null,null,1,null,null,null,null,null,null,null,null,null,null,null,null,null,null,null,null,null,null,null,null,null,null,null,null,null,null,null,null,"LaC 42.","Plant only evergreen groundcover and low shrubs on constricted medians, where the median width is between 5 and 10 feet.",null,null,null,null,""]
[null,null,1,null,null,null,null,null,null,null,null,null,null,null,null,null,null,null,null,null,null,null,null,null,null,null,null,null,null,null,null,"LaC 43.","Do not install plantings on medians less than 5 feet wide. Provide enhanced pavement treatment on these medians.",null,null,null,null,""]
[null,null,1,null,null,null,null,null,null,null,null,null,null,null,null,null,null,null,null,null,null,null,null,null,null,null,null,null,null,null,null,"LaC 44.","Design pedestrian waiting areas to be a minimum of 6 feet wide, paved with cast-in-place concrete. ",null,null,null,null,""]
[null,null,1,null,null,null,null,null,null,null,null,null,null,null,null,null,null,null,null,null,null,null,null,null,null,null,null,null,null,null,null,"LaC 45.","Install tactile warning strips at crosswalks.",null,null,null,null,""]
[null,null,1,null,null,null,null,null,null,null,null,null,null,null,null,null,null,null,null,null,null,null,null,null,null,null,null,null,null,null,null,"LaC 46.","Incorporate regulatory signage as necessary refer to appropriate roadway design standards",null,null,null,null,""]
[null,null,1,null,null,null,null,null,null,null,null,null,null,null,null,null,null,null,null,null,null,null,null,null,null,null,null,null,null,null,null,"LaC 47.","Use appropriate plant species as listed on the Maintained Zone Plant List.",null,null,null,null,""]
[null,null,1,null,null,null,null,null,null,null,null,null,null,null,null,null,null,null,null,null,null,null,null,null,null,null,null,null,null,null,null,"LaC 48.","Design and install pedestrian refuge island or median to conform with all relevant codes regarding sight lines and other related safety requirements.",null,null,null,null,""]
[null,null,1,null,null,null,null,null,null,null,null,null,null,null,null,null,null,null,null,null,null,null,null,null,null,null,null,null,null,null,null,"LaC 49.","Maintain landscape to conform all relevant codes regarding sight lines.",null,null,null,null,""]
[null,null,1,null,null,null,null,null,null,null,null,null,null,null,null,null,null,null,null,null,null,null,null,null,null,null,null,null,null,null,null,"C06.5.3 Roundabout Center "]
[null,null,1,null,null,null,null,null,null,null,null,null,null,null,null,null,null,null,null,null,null,null,null,null,null,null,null,null,null,null,null,"C06.5.3.1 General Guidance",null,"Compliance\n(Yes, No, N/A)","Approval\n(Yes, No, N/A)","Comments"]
[null,null,1,null,null,null,null,null,null,null,null,null,null,null,null,null,null,null,null,null,null,null,null,null,null,null,null,null,null,null,null,"LaC 50.","Use native grass as groundcover.",null,null,null,null,{"$f":"IF(OR(AI439=\"Yes\",AI439=\"N/A\"),1,IF(AI439=\"No\",0,IF(OR(AH439=\"N/A\",AH439=\"\"),\"\",IF(AH439=\"Yes\",1,))))","v":""}]
[null,null,{"$f":"IF(AL440<>\"\",0,IF($B$373=1,0,1))","v":1},null,null,null,null,null,null,null,null,null,null,null,null,null,null,null,null,null,null,null,null,null,null,null,null,null,null,null,null,"LaC 51.","Incorporate signage as necessary.",null,null,null,null,""]
[null,null,1,null,null,null,null,null,null,null,null,null,null,null,null,null,null,null,null,null,null,null,null,null,null,null,null,null,null,null,null,"LaC 52.","Use appropriate plant species as listed on the Maintained Zone Plant List.",null,null,null,null,""]
[null,null,1,null,null,null,null,null,null,null,null,null,null,null,null,null,null,null,null,null,null,null,null,null,null,null,null,null,null,null,null,"LaC 53.","Design planting layout in a simple and clean manner, conforming with roadway corridor and roundabout planting characters. Final planting layout should be approved by Design Review board.",null,null,null,null,""]
[null,null,1,null,null,null,null,null,null,null,null,null,null,null,null,null,null,null,null,null,null,null,null,null,null,null,null,null,null,null,null,"LaC 54.","Design and install roundabout centers to conform with all relevant codes regarding sight lines and other related safety requirements.",null,null,null,null,""]
[null,null,1,null,null,null,null,null,null,null,null,null,null,null,null,null,null,null,null,null,null,null,null,null,null,null,null,null,null,null,null,"LaC 55.","Maintain landscape to conform with all relevant codes regarding sight lines and other related safety requirements.",null,null,null,null,""]
[null,null,1,null,null,null,null,null,null,null,null,null,null,null,null,null,null,null,null,null,null,null,null,null,null,null,null,null,null,null,null,"LaC 56.","Comply with applicable roadway design standards for roadway and any traffic signage design.",null,null,null,null,""]
[null,null,1,null,null,null,null,null,null,null,null,null,null,null,null,null,null,null,null,null,null,null,null,null,null,null,null,null,null,null,null,"C06.5.3.2 Tier I Roundabout Treatment",null,"Compliance\n(Yes, No, N/A)","Approval\n(Yes, No, N/A)","Comments"]
[null,null,1,null,null,null,null,null,null,null,null,null,null,null,null,null,null,null,null,null,null,null,null,null,null,null,null,null,null,null,null,"LaC 57.","Include two formal half rings of shrubs (one half ring evergreen one half ring flowering shrubs).",null,null,null,null,""]
[null,null,1,null,null,null,null,null,null,null,null,null,null,null,null,null,null,null,null,null,null,null,null,null,null,null,null,null,null,null,null,"LaC 58.","Place a static display element or one flowering tree or canopy tree at the center of the roundabout. ",null,null,null,null,""]
[null,null,1,null,null,null,null,null,null,null,null,null,null,null,null,null,null,null,null,null,null,null,null,null,null,null,null,null,null,null,null,"C06.5.3.3 Tier II Roundabout Treatment",null,"Compliance\n(Yes, No, N/A)","Approval\n(Yes, No, N/A)","Comments"]
[null,null,1,null,null,null,null,null,null,null,null,null,null,null,null,null,null,null,null,null,null,null,null,null,null,null,null,null,null,null,null,"LaC 59.","Include one formal ring of evergreen shrubs.",null,null,null,null,""]
[null,null,1,null,null,null,null,null,null,null,null,null,null,null,null,null,null,null,null,null,null,null,null,null,null,null,null,null,null,null,null,"LaC 60.","Include formal center sculptural element or one canopy tree in the center of roundabout.",null,null,null,null,""]
[null,null,1,null,null,null,null,null,null,null,null,null,null,null,null,null,null,null,null,null,null,null,null,null,null,null,null,null,null,null,null,"C06.5.3.4 Tier III Roundabout Treatment",null,"Compliance\n(Yes, No, N/A)","Approval\n(Yes, No, N/A)","Comments"]
[null,null,1,null,null,null,null,null,null,null,null,null,null,null,null,null,null,null,null,null,null,null,null,null,null,null,null,null,null,null,null,"LaC 61.","Simple circular evergreen shrubs layout around center to cover minimum 30% of the median.",null,null,null,null,""]
[null,null,{"$f":"IF($B$373=1,0,1)","v":1}]
[null,null,1]
[null,null,{"$f":"IF($B$457=1,0,1)","v":1}]
[null,null,0,null,null,null,null,null,null,null,null,null,null,null,null,null,null,null,null,null,null,null,null,null,null,null,null,null,null,null,null,"C07 Site Furnishings",null,"Contractor \nCompliance","Reviewer \nApproval","Contractor Comments","Reviewer Comments","Completed/\nAccepted"]
[null,null,{"$f":"IF($B$457=1,0,1)","v":1},null,null,null,null,null,null,null,null,null,null,null,null,null,null,null,null,null,null,null,null,null,null,null,null,null,null,null,null,"C07.5.1 Benches",null,"Compliance\n(Yes, No, N/A)","Approval\n(Yes, No, N/A)","Comments"]
[null,null,{"$f":"IF(AL459<>\"\",0,IF($B$457=1,0,1))","v":1},null,null,null,null,null,null,null,null,null,null,null,null,null,null,null,null,null,null,null,null,null,null,null,null,null,null,null,null,"SFC 1.","Coordinate all standards in this section with the Tyndall AFB Landscape Master Plan. Remove poorly located or redundant litter receptacles, bicycle racks, vending machines, walls, and fences to reduce visual clutter and to lessen the requirements for maintenance.",null,null,null,null,{"$f":"IF(OR(AI459=\"Yes\",AI459=\"N/A\"),1,IF(AI459=\"No\",0,IF(OR(AH459=\"N/A\",AH459=\"\"),\"\",IF(AH459=\"Yes\",1,))))","v":""}]
[null,null,{"$f":"IF(AL460<>\"\",0,IF($B$457=1,0,1))","v":1},null,null,null,null,null,null,null,null,null,null,null,null,null,null,null,null,null,null,null,null,null,null,null,null,null,null,null,null,"SFC 2.","Site furnishings will primarily be concrete, recycled materials, and in some cases hardwood parts. Generally, match the site furniture of adjacent facilities and the facility district.  No metal will be used for bench seats and backs. Provide a coordinated consistent inventory of site furnishings to positively contribute to the visual environment, image, and identity of the base; ensure durability, low maintenance, reduced visual clutter, and compatibility with the adjacent architecture. ",null,null,null,null,""]
[null,null,1,null,null,null,null,null,null,null,null,null,null,null,null,null,null,null,null,null,null,null,null,null,null,null,null,null,null,null,null,"SFC 3.","Select high-quality architectural precast concrete benches for general areas that include wood seats and backs. Select Ipe wood seats and backs.",null,null,null,null,""]
[null,null,1,null,null,null,null,null,null,null,null,null,null,null,null,null,null,null,null,null,null,null,null,null,null,null,null,null,null,null,null,"SFC 4.","When concrete benches are utilized, select benches that are white in color with an acid finish. ",null,null,null,null,""]
[null,null,1,null,null,null,null,null,null,null,null,null,null,null,null,null,null,null,null,null,null,null,null,null,null,null,null,null,null,null,null,"SFC 5.","Select plastic lumber benches made of polyethylene and mixed with wood fiber (WPC lumber) at boardwalk, beach, marina, and at locations where shade structures are site or cost prohibitive.",null,null,null,null,""]
[null,null,1,null,null,null,null,null,null,null,null,null,null,null,null,null,null,null,null,null,null,null,null,null,null,null,null,null,null,null,null,"SFC 6.","Surface-mount benches in place. ",null,null,null,null,""]
[null,null,1,null,null,null,null,null,null,null,null,null,null,null,null,null,null,null,null,null,null,null,null,null,null,null,null,null,null,null,null,"C07.5.2 Picnic Tables & Benches",null,"Compliance\n(Yes, No, N/A)","Approval\n(Yes, No, N/A)","Comments"]
[null,null,1,null,null,null,null,null,null,null,null,null,null,null,null,null,null,null,null,null,null,null,null,null,null,null,null,null,null,null,null,"SFC 7.","Place picnic tables and benches so they do not impede AT stand-off distances as required in UFC 4-010-01, DoD Minimum Antiterrorism Standards for Buildings.",null,null,null,null,""]
[null,null,1,null,null,null,null,null,null,null,null,null,null,null,null,null,null,null,null,null,null,null,null,null,null,null,null,null,null,null,null,"SFC 8.","Select high quality architectural precast concrete picnic tables and benches. ",null,null,null,null,""]
[null,null,1,null,null,null,null,null,null,null,null,null,null,null,null,null,null,null,null,null,null,null,null,null,null,null,null,null,null,null,null,"SFC 9.","Select concrete that is white in color. ",null,null,null,null,""]
[null,null,1,null,null,null,null,null,null,null,null,null,null,null,null,null,null,null,null,null,null,null,null,null,null,null,null,null,null,null,null,"SFC 10.","If wood treatments are utilized in picnic tables and benches, select Jurrah wood.",null,null,null,null,""]
[null,null,1,null,null,null,null,null,null,null,null,null,null,null,null,null,null,null,null,null,null,null,null,null,null,null,null,null,null,null,null,"SFC 11.","If metal treatments are utilized in picnic tables and benches, select white metal.",null,null,null,null,""]
[null,null,1,null,null,null,null,null,null,null,null,null,null,null,null,null,null,null,null,null,null,null,null,null,null,null,null,null,null,null,null,"SFC 12.","Surface-mount picnic tables and benches on concrete. ",null,null,null,null,""]
[null,null,1,null,null,null,null,null,null,null,null,null,null,null,null,null,null,null,null,null,null,null,null,null,null,null,null,null,null,null,null,"C07.5.3 Outdoor Grills",null,"Compliance\n(Yes, No, N/A)","Approval\n(Yes, No, N/A)","Comments"]
[null,null,1,null,null,null,null,null,null,null,null,null,null,null,null,null,null,null,null,null,null,null,null,null,null,null,null,null,null,null,null,"SFC 13.","Select grills that are 14-gauge heavy-duty steel construction finished with high heat, nontoxic, black enamel.",null,null,null,null,""]
[null,null,1,null,null,null,null,null,null,null,null,null,null,null,null,null,null,null,null,null,null,null,null,null,null,null,null,null,null,null,null,"SFC 14.","Select grills that have covered hoods to reduce floating cinders for fire safety. ",null,null,null,null,""]
[null,null,1,null,null,null,null,null,null,null,null,null,null,null,null,null,null,null,null,null,null,null,null,null,null,null,null,null,null,null,null,"SFC 15.","Select grills that have 500 square inches of cooking surface with a 3-1/2-inch-diameter in-ground pedestal. ",null,null,null,null,""]
[null,null,1,null,null,null,null,null,null,null,null,null,null,null,null,null,null,null,null,null,null,null,null,null,null,null,null,null,null,null,null,"SFC 16.","Select grills that include a side utility shelf. ",null,null,null,null,""]
[null,null,1,null,null,null,null,null,null,null,null,null,null,null,null,null,null,null,null,null,null,null,null,null,null,null,null,null,null,null,null,"SFC 17.","Select grills that have latch options, if available, to deter bears.",null,null,null,null,""]
[null,null,1,null,null,null,null,null,null,null,null,null,null,null,null,null,null,null,null,null,null,null,null,null,null,null,null,null,null,null,null,"C07.5.4 Security Bollards",null,"Compliance\n(Yes, No, N/A)","Approval\n(Yes, No, N/A)","Comments"]
[null,null,1,null,null,null,null,null,null,null,null,null,null,null,null,null,null,null,null,null,null,null,null,null,null,null,null,null,null,null,null,"SFC 18.","Comply with UFC 4-022-02, Selection and Application of Vehicle Barriers, for bollards intended to provide crash resistance and other security measures. ",null,null,null,null,""]
[null,null,1,null,null,null,null,null,null,null,null,null,null,null,null,null,null,null,null,null,null,null,null,null,null,null,null,null,null,null,null,"SFC 19.","Select bollards based on the level of security desired - light, medium, or heavy. ",null,null,null,null,""]
[null,null,1,null,null,null,null,null,null,null,null,null,null,null,null,null,null,null,null,null,null,null,null,null,null,null,null,null,null,null,null,"SFC 20.","Select bollards based on whether they must be removable or fixed. ",null,null,null,null,""]
[null,null,1,null,null,null,null,null,null,null,null,null,null,null,null,null,null,null,null,null,null,null,null,null,null,null,null,null,null,null,null,"SFC 21.","Select bollards that are a minimum of 5 inches in diameter. ",null,null,null,null,""]
[null,null,1,null,null,null,null,null,null,null,null,null,null,null,null,null,null,null,null,null,null,null,null,null,null,null,null,null,null,null,null,"SFC 22.","Use Type 316 stainless steel appropriate for use in a marine environment. ",null,null,null,null,""]
[null,null,1,null,null,null,null,null,null,null,null,null,null,null,null,null,null,null,null,null,null,null,null,null,null,null,null,null,null,null,null,"SFC 23.","Verify that any bollard used for anti-ram protection is on the approved DoD Anti-Ram Vehicle Barrier List. ",null,null,null,null,""]
[null,null,1,null,null,null,null,null,null,null,null,null,null,null,null,null,null,null,null,null,null,null,null,null,null,null,null,null,null,null,null,"C07.5.5 Bike Racks",null,"Compliance\n(Yes, No, N/A)","Approval\n(Yes, No, N/A)","Comments"]
[null,null,1,null,null,null,null,null,null,null,null,null,null,null,null,null,null,null,null,null,null,null,null,null,null,null,null,null,null,null,null,"SFC 24. ","Select bike racks that are powder coated cast aluminum. ",null,null,null,null,""]
[null,null,1,null,null,null,null,null,null,null,null,null,null,null,null,null,null,null,null,null,null,null,null,null,null,null,null,null,null,null,null,"SFC 25.","Select bike racks that are metallic silver in color.",null,null,null,null,""]
[null,null,1,null,null,null,null,null,null,null,null,null,null,null,null,null,null,null,null,null,null,null,null,null,null,null,null,null,null,null,null,"SFC 26.","Select bike racks that have a curved top reflecting the architectural style of the base. ",null,null,null,null,""]
[null,null,1,null,null,null,null,null,null,null,null,null,null,null,null,null,null,null,null,null,null,null,null,null,null,null,null,null,null,null,null,"SFC 27.","Surface-mount bike racks on concrete. ",null,null,null,null,""]
[null,null,1,null,null,null,null,null,null,null,null,null,null,null,null,null,null,null,null,null,null,null,null,null,null,null,null,null,null,null,null,"C07.5.6 Flag Poles",null,"Compliance\n(Yes, No, N/A)","Approval\n(Yes, No, N/A)","Comments"]
[null,null,1,null,null,null,null,null,null,null,null,null,null,null,null,null,null,null,null,null,null,null,null,null,null,null,null,null,null,null,null,"SFC 28.","Select flagpoles that comply with Air Force Instruction 34-1201, Protocol. ",null,null,null,null,""]
[null,null,1,null,null,null,null,null,null,null,null,null,null,null,null,null,null,null,null,null,null,null,null,null,null,null,null,null,null,null,null,"SFC 29.","Select flagpoles that are complete units from a single manufacturer and include fittings, accessories, bases, anchorage devices, finials, and lightning grounding. ",null,null,null,null,""]
[null,null,1,null,null,null,null,null,null,null,null,null,null,null,null,null,null,null,null,null,null,null,null,null,null,null,null,null,null,null,null,"SFC 30.","Verify that flagpoles are rated to withstand hurricane wind. ",null,null,null,null,""]
[null,null,1,null,null,null,null,null,null,null,null,null,null,null,null,null,null,null,null,null,null,null,null,null,null,null,null,null,null,null,null,"SFC 31.","Select flagpoles that are cone or entasis-tapered fabricated from seamless extruded tubing. ",null,null,null,null,""]
[null,null,1,null,null,null,null,null,null,null,null,null,null,null,null,null,null,null,null,null,null,null,null,null,null,null,null,null,null,null,null,"SFC 32.","Select flagpoles that have internal halyard, cam, and cleat systems. ",null,null,null,null,""]
[null,null,1,null,null,null,null,null,null,null,null,null,null,null,null,null,null,null,null,null,null,null,null,null,null,null,null,null,null,null,null,"SFC 33.","Select flagpoles that are satin/silver metal finish. ",null,null,null,null,""]
[null,null,1,null,null,null,null,null,null,null,null,null,null,null,null,null,null,null,null,null,null,null,null,null,null,null,null,null,null,null,null,"SFC 34.","Provide manufacturer's standard foundation tube and sleeve for installation. ",null,null,null,null,""]
[null,null,1,null,null,null,null,null,null,null,null,null,null,null,null,null,null,null,null,null,null,null,null,null,null,null,null,null,null,null,null,"SFC 35.","Select flagpoles that meet National Association of Architectural Metal Manufacturers FP 1001-07, Guide Specifications For Design of Metal Flagpoles, and all regional wind velocity standards for sustained wind and wind gusts.",null,null,null,null,""]
[null,null,1,null,null,null,null,null,null,null,null,null,null,null,null,null,null,null,null,null,null,null,null,null,null,null,null,null,null,null,null,"C07.5.7 Playground Equipment",null,"Compliance\n(Yes, No, N/A)","Approval\n(Yes, No, N/A)","Comments"]
[null,null,1,null,null,null,null,null,null,null,null,null,null,null,null,null,null,null,null,null,null,null,null,null,null,null,null,null,null,null,null,"SFC 36.","Conform to the requirements in all relevant Housing and Community Facilities UFC (Series 4-700) and Facilities Criteria (FC) (Series 4-700) for playground designs. ",null,null,null,null,""]
[null,null,1,null,null,null,null,null,null,null,null,null,null,null,null,null,null,null,null,null,null,null,null,null,null,null,null,null,null,null,null,"SFC 37.","Comply with requirements for play areas in the U.S. Access Board's Guide on Play Areas. ",null,null,null,null,""]
[null,null,1,null,null,null,null,null,null,null,null,null,null,null,null,null,null,null,null,null,null,null,null,null,null,null,null,null,null,null,null,"SFC 38.","Comply with requirements of UFC 4-740-14, Design: Child Development Centers, and FC 4-740-14N, Navy and Marine Corps Child Development Centers.",null,null,null,null,""]
[null,null,1,null,null,null,null,null,null,null,null,null,null,null,null,null,null,null,null,null,null,null,null,null,null,null,null,null,null,null,null,"SFC 39.","Design playgrounds to meet current Americans with Disabilities Act (ADA) access criteria and International Play Equipment Manufacturers Association (IPEMA) safety criteria. ",null,null,null,null,""]
[null,null,1,null,null,null,null,null,null,null,null,null,null,null,null,null,null,null,null,null,null,null,null,null,null,null,null,null,null,null,null,"SFC 40.","Group play equipment together with elements for appropriate age groups: toddlers 6 to 23 months; preschool, 2 to 5 years; and grade school, 5 to 12 years. ",null,null,null,null,""]
[null,null,1,null,null,null,null,null,null,null,null,null,null,null,null,null,null,null,null,null,null,null,null,null,null,null,null,null,null,null,null,"SFC 41.","Provide equipment that has elements that are ADA accessible in meaningful way, not just access platforms. ",null,null,null,null,""]
[null,null,1,null,null,null,null,null,null,null,null,null,null,null,null,null,null,null,null,null,null,null,null,null,null,null,null,null,null,null,null,"SFC 42.","Provide shade furnishings that can withstand hurricane winds as part of the equipment. ",null,null,null,null,""]
[null,null,1,null,null,null,null,null,null,null,null,null,null,null,null,null,null,null,null,null,null,null,null,null,null,null,null,null,null,null,null,"SFC 43.","Provide surfacing under equipment that has appropriate fall zones and depth of material and that meets code for the height of the adjacent equipment. ",null,null,null,null,""]
[null,null,1,null,null,null,null,null,null,null,null,null,null,null,null,null,null,null,null,null,null,null,null,null,null,null,null,null,null,null,null,"SFC 44.","Provide water fountains at each playground. ",null,null,null,null,""]
[null,null,1,null,null,null,null,null,null,null,null,null,null,null,null,null,null,null,null,null,null,null,null,null,null,null,null,null,null,null,null,"SFC 45.","Provide benches at each playground. ",null,null,null,null,""]
[null,null,1,null,null,null,null,null,null,null,null,null,null,null,null,null,null,null,null,null,null,null,null,null,null,null,null,null,null,null,null,"C07.5.8 Fitness Equipment",null,"Compliance\n(Yes, No, N/A)","Approval\n(Yes, No, N/A)","Comments"]
[null,null,1,null,null,null,null,null,null,null,null,null,null,null,null,null,null,null,null,null,null,null,null,null,null,null,null,null,null,null,null,"SFC 46.","Locate fitness equipment in a single location similar to a playground or as single elements along a trail system. ",null,null,null,null,""]
[null,null,1,null,null,null,null,null,null,null,null,null,null,null,null,null,null,null,null,null,null,null,null,null,null,null,null,null,null,null,null,"SFC 47.","Select fitness equipment that addresses strengthening needs of both lower and upper body. ",null,null,null,null,""]
[null,null,1,null,null,null,null,null,null,null,null,null,null,null,null,null,null,null,null,null,null,null,null,null,null,null,null,null,null,null,null,"C07.5.9 Safety Surfacing",null,"Compliance\n(Yes, No, N/A)","Approval\n(Yes, No, N/A)","Comments"]
[null,null,1,null,null,null,null,null,null,null,null,null,null,null,null,null,null,null,null,null,null,null,null,null,null,null,null,null,null,null,null,"SFC 48.","Comply with requirements for recreational facilities in the U.S. Access Board's Architectural Barriers Act Standards, Chapter 10, Recreational Facilities, and ASTM F1951, Standard Specification for Determination of Accessibility of Surface Systems Under and Around Playground Equipment.",null,null,null,null,""]
[null,null,1,null,null,null,null,null,null,null,null,null,null,null,null,null,null,null,null,null,null,null,null,null,null,null,null,null,null,null,null,"SFC 49.","Select safety surfacing (see diagram at the right) for playgrounds that is a high quality poured-in-place rubber EPDM system bound with aliphatic binders. ",null,null,null,null,""]
[null,null,1,null,null,null,null,null,null,null,null,null,null,null,null,null,null,null,null,null,null,null,null,null,null,null,null,null,null,null,null,"SFC 50.","Select surfacing that is composed of two layers: a bottom cushion layer that meets the standards of IPEMA and ASTM F1292-13, Standard Specification for Impact Attenuation of Surfacing Materials Within the Use Zone of Playground Equipment. ",null,null,null,null,""]
[null,null,1,null,null,null,null,null,null,null,null,null,null,null,null,null,null,null,null,null,null,null,null,null,null,null,null,null,null,null,null,"SFC 51.","Use a top layer that is a colored wearing surface and other layers as shown in diagram to right. ",null,null,null,null,""]
[null,null,1,null,null,null,null,null,null,null,null,null,null,null,null,null,null,null,null,null,null,null,null,null,null,null,null,null,null,null,null,"SFC 52.","Use a base of surface of compacted stone, asphalt, or concrete base depending on soil conditions. ",null,null,null,null,""]
[null,null,1,null,null,null,null,null,null,null,null,null,null,null,null,null,null,null,null,null,null,null,null,null,null,null,null,null,null,null,null,"SFC 53.","Contain all outside edges using a flush concrete curb. ",null,null,null,null,""]
[null,null,1,null,null,null,null,null,null,null,null,null,null,null,null,null,null,null,null,null,null,null,null,null,null,null,null,null,null,null,null,"SFC 54.","Use a pitched surface to drain. ",null,null,null,null,""]
[null,null,1,null,null,null,null,null,null,null,null,null,null,null,null,null,null,null,null,null,null,null,null,null,null,null,null,null,null,null,null,"C07.5.10 Site Furniture - Coastal Zone",null,"Compliance\n(Yes, No, N/A)","Approval\n(Yes, No, N/A)","Comments"]
[null,null,1,null,null,null,null,null,null,null,null,null,null,null,null,null,null,null,null,null,null,null,null,null,null,null,null,null,null,null,null,"SFC 55.","Position site furnishings for users to enjoy spending time in the natural coastal environment.",null,null,null,null,""]
[null,null,1,null,null,null,null,null,null,null,null,null,null,null,null,null,null,null,null,null,null,null,null,null,null,null,null,null,null,null,null,"SFC 56.","Select furnishing types, colors, and placement to recognize and fit within the natural character of the coastal area.",null,null,null,null,{"$f":"IF(OR(AI523=\"Yes\",AI523=\"N/A\"),1,IF(AI523=\"No\",0,IF(OR(AH523=\"N/A\",AH523=\"\"),\"\",IF(AH523=\"Yes\",1,))))","v":""}]
[null,null,1,null,null,null,null,null,null,null,null,null,null,null,null,null,null,null,null,null,null,null,null,null,null,null,null,null,null,null,null,"SFC 57.","Use finishes, materials, and assemblies that can withstand the area's extreme marine-environmental conditions.",null,null,null,null,""]
[null,null,1,null,null,null,null,null,null,null,null,null,null,null,null,null,null,null,null,null,null,null,null,null,null,null,null,null,null,null,null,"SFC 58.","Use only coastal zone site furniture as documented in this section unless otherwise approved by the Tyndall AFB Design Review Board and the U.S. Fish and Wildlife Service.",null,null,null,null,""]
[null,null,1,null,null,null,null,null,null,null,null,null,null,null,null,null,null,null,null,null,null,null,null,null,null,null,null,null,null,null,null,"C07.5.11 Shade Structures",null,"Compliance\n(Yes, No, N/A)","Approval\n(Yes, No, N/A)","Comments"]
[null,null,1,null,null,null,null,null,null,null,null,null,null,null,null,null,null,null,null,null,null,null,null,null,null,null,null,null,null,null,null,"SFC 59.","Design shade structures to reflect the architectural style as outlined in the Tyndall AFB IFS Design Intent: Architectural Image & Character. For furnishings with wood elements a weather shelter or enclosure is required. ",null,null,null,null,""]
[null,null,1,null,null,null,null,null,null,null,null,null,null,null,null,null,null,null,null,null,null,null,null,null,null,null,null,null,null,null,null,"SFC 60.","Design shade structures to have curved metal roofs with a aluminum supports capable of withstanding Category 5 hurricane wind speeds. ",null,null,null,null,""]
[null,null,1,null,null,null,null,null,null,null,null,null,null,null,null,null,null,null,null,null,null,null,null,null,null,null,null,null,null,null,null,"SFC 61.","Use footing size and depth to meet the wind criteria. Footings must be designed by a structural engineer.",null,null,null,null,""]
[null,null,1,null,null,null,null,null,null,null,null,null,null,null,null,null,null,null,null,null,null,null,null,null,null,null,null,null,null,null,null,"SFC 62.","Use a powder-coated aluminum finish. Design the metal roof color coordinate with the roof color of the adjacent building. Design the metal structure to coordinate with the metal color used on the outside of the building. Select masonry (if used) to match that of adjacent building.",null,null,null,null,""]
[null,null,1,null,null,null,null,null,null,null,null,null,null,null,null,null,null,null,null,null,null,null,null,null,null,null,null,null,null,null,null,"C07.5.12 Fences & Gates",null,"Compliance\n(Yes, No, N/A)","Approval\n(Yes, No, N/A)","Comments"]
[null,null,1,null,null,null,null,null,null,null,null,null,null,null,null,null,null,null,null,null,null,null,null,null,null,null,null,null,null,null,null,"SFC 63.","Comply with UFC requirements for all fencing and gates used on Tyndall AFB.",null,null,null,null,""]
[null,null,1,null,null,null,null,null,null,null,null,null,null,null,null,null,null,null,null,null,null,null,null,null,null,null,null,null,null,null,null,"SFC 64.","Provide 12-inch concrete mow strips under fencing.  ",null,null,null,null,""]
[null,null,{"$f":"IF($B$457=1,0,1)","v":1}]
[null,null,{"$f":"IF($B$457=1,0,1)","v":1}]
[null,null,{"$f":"IF($B$537=1,0,1)","v":1}]
[null,null,0,null,null,null,null,null,null,null,null,null,null,null,null,null,null,null,null,null,null,null,null,null,null,null,null,null,null,null,null,"C08 Signs",null,"Contractor \nCompliance","Reviewer \nApproval","Contractor Comments","Reviewer Comments","Completed/\nAccepted"]
[null,null,{"$f":"IF($B$537=1,0,1)","v":1},null,null,null,null,null,null,null,null,null,null,null,null,null,null,null,null,null,null,null,null,null,null,null,null,null,null,null,null,"C08.4.2 Sign Placement Multi-Modal Spine",null,"Compliance\n(Yes, No, N/A)","Approval\n(Yes, No, N/A)","Comments"]
[null,null,{"$f":"IF(AL539<>\"\",0,IF($B$537=1,0,1))","v":1},null,null,null,null,null,null,null,null,null,null,null,null,null,null,null,null,null,null,null,null,null,null,null,null,null,null,null,null,"PSC 1.","Place primary and secondary Level 1 sign types along the central bicycle and autonomous vehicle zone. ",null,null,null,null,{"$f":"IF(OR(AI539=\"Yes\",AI539=\"N/A\"),1,IF(AI539=\"No\",0,IF(OR(AH539=\"N/A\",AH539=\"\"),\"\",IF(AH539=\"Yes\",1,))))","v":""}]
[null,null,{"$f":"IF(AL540<>\"\",0,IF($B$537=1,0,1))","v":1},null,null,null,null,null,null,null,null,null,null,null,null,null,null,null,null,null,null,null,null,null,null,null,null,null,null,null,null,"PSC 2.","Place secondary and tertiary Level 1 sign types along pedestrian zone adjacent to parking areas. ",null,null,null,null,""]
[null,null,1,null,null,null,null,null,null,null,null,null,null,null,null,null,null,null,null,null,null,null,null,null,null,null,null,null,null,null,null,"PSC 3.","Place tertiary Level 1 signs adjacent to facilities located along the Multi-Modal Spine.",null,null,null,null,""]
[null,null,1,null,null,null,null,null,null,null,null,null,null,null,null,null,null,null,null,null,null,null,null,null,null,null,null,null,null,null,null,"C08.5  Design Elements"]
[null,null,1,null,null,null,null,null,null,null,null,null,null,null,null,null,null,null,null,null,null,null,null,null,null,null,null,null,null,null,null,"C08.5.1 Material & Color Palette",null,"Compliance\n(Yes, No, N/A)","Approval\n(Yes, No, N/A)","Comments"]
[null,null,1,null,null,null,null,null,null,null,null,null,null,null,null,null,null,null,null,null,null,null,null,null,null,null,null,null,null,null,null,"PSC 4.","Use the primary and base color Air Force Blue (PMS 287) to signify discipline and commonality to provide a visual link to the base’s mission and identity. ",null,null,null,null,""]
[null,null,1,null,null,null,null,null,null,null,null,null,null,null,null,null,null,null,null,null,null,null,null,null,null,null,null,null,null,null,null,"PSC 5.","Use white, light gray, or carbon gray for lettering color against primary and base color signage to enhance contrast to the background color field and to improve overall visibility of the sign. ",null,null,null,null,""]
[null,null,1,null,null,null,null,null,null,null,null,null,null,null,null,null,null,null,null,null,null,null,null,null,null,null,null,null,null,null,null,"PSC 6.","Use secondary and accent colors sky blue, seafoam green, and dune sand to signify nature and the environment. Use these colors for signage accent strips, motifs, and panel infills. Secondary and accent colors can be used to identify location, zone, or district. ",null,null,null,null,""]
[null,null,1,null,null,null,null,null,null,null,null,null,null,null,null,null,null,null,null,null,null,null,null,null,null,null,null,null,null,null,null,"PSC 7.","Use black or dark color lettering against secondary and accent colors for contrast and visibility.  ",null,null,null,null,""]
[null,null,1,null,null,null,null,null,null,null,null,null,null,null,null,null,null,null,null,null,null,null,null,null,null,null,null,null,null,null,null,"PSC 8.","Comply with UFC 3-120-01 Section 2.2, Font Standard, and Section 3.2.2, Material & Color, for font styles and sizes.",null,null,null,null,""]
[null,null,1,null,null,null,null,null,null,null,null,null,null,null,null,null,null,null,null,null,null,null,null,null,null,null,null,null,null,null,null,"C08.5.2 Tenant Sign Design Guidance",null,"Compliance\n(Yes, No, N/A)","Approval\n(Yes, No, N/A)","Comments"]
[null,null,1,null,null,null,null,null,null,null,null,null,null,null,null,null,null,null,null,null,null,null,null,null,null,null,null,null,null,null,null,"PSC 9.","Use reinforced monument-type or a masonry base for primary and secondary sign types. Avoid signage designs that have single-pole support to comply with wind requirements. Incorporate material and color recommendations outlined in Section C08.5.1. ",null,null,null,null,""]
[null,null,1,null,null,null,null,null,null,null,null,null,null,null,null,null,null,null,null,null,null,null,null,null,null,null,null,null,null,null,null,"PSC 10.","Construct signs to be suitable for Florida Gulf Coast conditions and to withstand hurricane-force wind. ",null,null,null,null,""]
[null,null,1,null,null,null,null,null,null,null,null,null,null,null,null,null,null,null,null,null,null,null,null,null,null,null,null,null,null,null,null,"PSC 11.","Design signs to have maximum visibility from pedestrian flow but do not impede antiterrorism requirements for adjacent base facilities.",null,null,null,null,""]
[null,null,1,null,null,null,null,null,null,null,null,null,null,null,null,null,null,null,null,null,null,null,null,null,null,null,null,null,null,null,null,"C08.6  Level 1 Pedestrian Signage Design Elements"]
[null,null,1,null,null,null,null,null,null,null,null,null,null,null,null,null,null,null,null,null,null,null,null,null,null,null,null,null,null,null,null,"C08.6.1 Level 1 Primary Informational Signs",null,"Compliance\n(Yes, No, N/A)","Approval\n(Yes, No, N/A)","Comments"]
[null,null,1,null,null,null,null,null,null,null,null,null,null,null,null,null,null,null,null,null,null,null,null,null,null,null,null,null,null,null,null,"PSC 12.","Locate signs at the start, terminus, and junction of primary corridors, or near the access points to facility sub-districts (F-35, WEG, AFNORTH)",null,null,null,null,""]
[null,null,1,null,null,null,null,null,null,null,null,null,null,null,null,null,null,null,null,null,null,null,null,null,null,null,null,null,null,null,null,"PSC 13.","Place primary signs so they do not exceed 12 feet in height (measured from the ground up) or are visible above eye-level from a distance of 100 feet or less.",null,null,null,null,""]
[null,null,1,null,null,null,null,null,null,null,null,null,null,null,null,null,null,null,null,null,null,null,null,null,null,null,null,null,null,null,null,"PSC 14.","Use reinforced supports and anchored footings capable of withstanding hurricane-force wind.",null,null,null,null,""]
[null,null,1,null,null,null,null,null,null,null,null,null,null,null,null,null,null,null,null,null,null,null,null,null,null,null,null,null,null,null,null,"PSC 15.","Include design allowances for electronic or digital display upgrades. ",null,null,null,null,""]
[null,null,1,null,null,null,null,null,null,null,null,null,null,null,null,null,null,null,null,null,null,null,null,null,null,null,null,null,null,null,null,"C08.6.2 Level 1 Secondary Informational Signs ",null,"Compliance\n(Yes, No, N/A)","Approval\n(Yes, No, N/A)","Comments"]
[null,null,1,null,null,null,null,null,null,null,null,null,null,null,null,null,null,null,null,null,null,null,null,null,null,null,null,null,null,null,null,"PSC 16.","Place secondary signs so they do not exceed 7 feet in height (measured from the ground up) and are visible at eye-level at a distance of 50 feet or less and maintain required landscape clearance.",null,null,null,null,""]
[null,null,1,null,null,null,null,null,null,null,null,null,null,null,null,null,null,null,null,null,null,null,null,null,null,null,null,null,null,null,null,"PSC 17.","Locate within 5 feet of the adjacent pavement edge but not in the path of mobility or movement.",null,null,null,null,""]
[null,null,1,null,null,null,null,null,null,null,null,null,null,null,null,null,null,null,null,null,null,null,null,null,null,null,null,null,null,null,null,"PSC 18.","Design secondary signs to be adaptable for use in the Sabre District housing area and the Morale, Welfare, and Recreation (MWR) developments outside the core installation. ",null,null,null,null,""]
[null,null,1,null,null,null,null,null,null,null,null,null,null,null,null,null,null,null,null,null,null,null,null,null,null,null,null,null,null,null,null,"PSC 19.","Optimize sign design for simplified fabrication.",null,null,null,null,""]
[null,null,1,null,null,null,null,null,null,null,null,null,null,null,null,null,null,null,null,null,null,null,null,null,null,null,null,null,null,null,null,"PSC 20.","Design signs to be wind resistant and include reinforced anchors and support elements.",null,null,null,null,""]
[null,null,1,null,null,null,null,null,null,null,null,null,null,null,null,null,null,null,null,null,null,null,null,null,null,null,null,null,null,null,null,"PSC 21.","Include design allowances for electronic or digital display upgrades. ",null,null,null,null,""]
[null,null,1,null,null,null,null,null,null,null,null,null,null,null,null,null,null,null,null,null,null,null,null,null,null,null,null,null,null,null,null,"C08.6.3 Level 1 Tertiary Informational Signs ",null,"Compliance\n(Yes, No, N/A)","Approval\n(Yes, No, N/A)","Comments"]
[null,null,1,null,null,null,null,null,null,null,null,null,null,null,null,null,null,null,null,null,null,null,null,null,null,null,null,null,null,null,null,"PSC 22.","Locate at tertiary signs for informational and directional use at primary, secondary, and tertiary pedestrian pathways.",null,null,null,null,""]
[null,null,1,null,null,null,null,null,null,null,null,null,null,null,null,null,null,null,null,null,null,null,null,null,null,null,null,null,null,null,null,"PSC 23.","Place signs so they do not exceed 4.5 feet in height (measured from the ground up) and are visible at or below eye-level with a distance of 20 feet or less.",null,null,null,null,""]
[null,null,1,null,null,null,null,null,null,null,null,null,null,null,null,null,null,null,null,null,null,null,null,null,null,null,null,null,null,null,null,"PSC 24.","Design tertiary signs to have a minimal amount of text.",null,null,null,null,""]
[null,null,1,null,null,null,null,null,null,null,null,null,null,null,null,null,null,null,null,null,null,null,null,null,null,null,null,null,null,null,null,"PSC 25.","Install tertiary signs on paved areas. Install on unpaved area when suitable for coastal development to minimize footprint.",null,null,null,null,""]
[null,null,1,null,null,null,null,null,null,null,null,null,null,null,null,null,null,null,null,null,null,null,null,null,null,null,null,null,null,null,null,"PSC 26.","Locate sign within a 3-foot perimeter from the pavement edge but not in the path of mobility or movement.",null,null,null,null,""]
[null,null,1,null,null,null,null,null,null,null,null,null,null,null,null,null,null,null,null,null,null,null,null,null,null,null,null,null,null,null,null,"PSC 27.","Design secondary signs to be adaptable for use in the Sabre District housing area and the MWR developments outside the core installation. ",null,null,null,null,""]
[null,null,1,null,null,null,null,null,null,null,null,null,null,null,null,null,null,null,null,null,null,null,null,null,null,null,null,null,null,null,null,"PSC 28.","Optimize sign design for simplified fabrication and installation.",null,null,null,null,""]
[null,null,1,null,null,null,null,null,null,null,null,null,null,null,null,null,null,null,null,null,null,null,null,null,null,null,null,null,null,null,null,"C08.7 Level 2 Pedestrian Signage Design Elements"]
[null,null,1,null,null,null,null,null,null,null,null,null,null,null,null,null,null,null,null,null,null,null,null,null,null,null,null,null,null,null,null,"C08.7.1 Level 2 Primary Informational Signs ",null,"Compliance\n(Yes, No, N/A)","Approval\n(Yes, No, N/A)","Comments"]
[null,null,1,null,null,null,null,null,null,null,null,null,null,null,null,null,null,null,null,null,null,null,null,null,null,null,null,null,null,null,null,"PSC 29.","Locate Level 2 primary signs at the junctions of a main pedestrian corridor. ",null,null,null,null,""]
[null,null,1,null,null,null,null,null,null,null,null,null,null,null,null,null,null,null,null,null,null,null,null,null,null,null,null,null,null,null,null,"PSC 30.","Place primary sign so it does not exceed 12 feet in height (measured from the ground up) or is visible above eye-level from a distance of 100 feet or less.",null,null,null,null,""]
[null,null,1,null,null,null,null,null,null,null,null,null,null,null,null,null,null,null,null,null,null,null,null,null,null,null,null,null,null,null,null,"PSC 31.","Use reinforced supports and anchored footings capable of withstanding hurricane-force wind.",null,null,null,null,""]
[null,null,1,null,null,null,null,null,null,null,null,null,null,null,null,null,null,null,null,null,null,null,null,null,null,null,null,null,null,null,null,"PSC 32.","Include design allowances for electronic or digital display upgrades.",null,null,null,null,""]
[null,null,1,null,null,null,null,null,null,null,null,null,null,null,null,null,null,null,null,null,null,null,null,null,null,null,null,null,null,null,null,"C08.7.2 Level 2 Secondary Informational Signs ",null,"Compliance\n(Yes, No, N/A)","Approval\n(Yes, No, N/A)","Comments"]
[null,null,1,null,null,null,null,null,null,null,null,null,null,null,null,null,null,null,null,null,null,null,null,null,null,null,null,null,null,null,null,"PSC 33.","Locate Level 2 secondary signs at primary and secondary pedestrian, especially at or near the junctions of roads and sidewalks or pathways.",null,null,null,null,""]
[null,null,1,null,null,null,null,null,null,null,null,null,null,null,null,null,null,null,null,null,null,null,null,null,null,null,null,null,null,null,null,"PSC 34.","Place secondary sign so is has an upright form that does not exceed 7 feet in height (measured from the ground up) and is visible is within 50 feet or less.",null,null,null,null,""]
[null,null,1,null,null,null,null,null,null,null,null,null,null,null,null,null,null,null,null,null,null,null,null,null,null,null,null,null,null,null,null,"C08.7.3 Level 2 Tertiary Informational Signs",null,"Compliance\n(Yes, No, N/A)","Approval\n(Yes, No, N/A)","Comments"]
[null,null,1,null,null,null,null,null,null,null,null,null,null,null,null,null,null,null,null,null,null,null,null,null,null,null,null,null,null,null,null,"PSC 35.","Locate Level 3 tertiary signs at primary and secondary pedestrian pathways, especially at or near junctions of roads and sidewalks or pathways.",null,null,null,null,""]
[null,null,1,null,null,null,null,null,null,null,null,null,null,null,null,null,null,null,null,null,null,null,null,null,null,null,null,null,null,null,null,"PSC 36.","Place Level 3 tertiary sign so it has an upright form that does not exceed 4 feet in height (measured from the ground up) and is visible within 20 feet or less.",null,null,null,null,""]
[null,null,1,null,null,null,null,null,null,null,null,null,null,null,null,null,null,null,null,null,null,null,null,null,null,null,null,null,null,null,null,"C08.8 Coastal Zone Pedestrian Signage Design Typology"]
[null,null,1,null,null,null,null,null,null,null,null,null,null,null,null,null,null,null,null,null,null,null,null,null,null,null,null,null,null,null,null,"C08.8.1 Coastal Zone Pedestrian Signage",null,"Compliance\n(Yes, No, N/A)","Approval\n(Yes, No, N/A)","Comments"]
[null,null,1,null,null,null,null,null,null,null,null,null,null,null,null,null,null,null,null,null,null,null,null,null,null,null,null,null,null,null,null,"PSC 37.","Maintain small sign installation footprint to minimize effect to existing wildlife and vegetative habitat.",null,null,null,null,""]
[null,null,1,null,null,null,null,null,null,null,null,null,null,null,null,null,null,null,null,null,null,null,null,null,null,null,null,null,null,null,null,"PSC 38.","Coastal Zone signs must have reinforced footing or an anchored base when located on sand or the beach.",null,null,null,null,""]
[null,null,1,null,null,null,null,null,null,null,null,null,null,null,null,null,null,null,null,null,null,null,null,null,null,null,null,null,null,null,null,"PSC 39.","Design signs to withstand effects of wind, tidal waves, seasonal storm surge, and a marine environment.",null,null,null,null,""]
[null,null,1,null,null,null,null,null,null,null,null,null,null,null,null,null,null,null,null,null,null,null,null,null,null,null,null,null,null,null,null,"PSC 40.","Consult with the Tyndall AFB Civil Engineer Squadron Environmental Element for signage requirements at tribal or archeological ground prior to installing signs.",null,null,null,null,""]
[null,null,1,null,null,null,null,null,null,null,null,null,null,null,null,null,null,null,null,null,null,null,null,null,null,null,null,null,null,null,null,"PSC 41.","Design informational and interpretive signs to comply with Americans with Disabilities Act accessibility requirements.",null,null,null,null,""]
[null,null,1,null,null,null,null,null,null,null,null,null,null,null,null,null,null,null,null,null,null,null,null,null,null,null,null,null,null,null,null,"PSC 42.","Design signs to comply with health and safety requirements.",null,null,null,null,""]
[null,null,1,null,null,null,null,null,null,null,null,null,null,null,null,null,null,null,null,null,null,null,null,null,null,null,null,null,null,null,null,"PSC 43.","Do not use lighted signs in the Coastal Zone.",null,null,null,null,""]
[null,null,1,null,null,null,null,null,null,null,null,null,null,null,null,null,null,null,null,null,null,null,null,null,null,null,null,null,null,null,null,"PSC 44.","Include break away components so signs are more resilient during storm surge and hurricane force conditions.",null,null,null,null,""]
[null,null,1,null,null,null,null,null,null,null,null,null,null,null,null,null,null,null,null,null,null,null,null,null,null,null,null,null,null,null,null,"PSC 45.","Include design allowances for electronic display upgrades while maintaining compliance with all coastal lighting regulations.",null,null,null,null,""]
[null,null,1,null,null,null,null,null,null,null,null,null,null,null,null,null,null,null,null,null,null,null,null,null,null,null,null,null,null,null,null,"PSC 46.","Design sign components to withstand saltwater corrosion.",null,null,null,null,""]
[null,null,1,null,null,null,null,null,null,null,null,null,null,null,null,null,null,null,null,null,null,null,null,null,null,null,null,null,null,null,null,"C08.8.2 Conservation Area Signage",null,null,"Approval\n(Yes, No, N/A)","Comments"]
[null,null,1,null,null,null,null,null,null,null,null,null,null,null,null,null,null,null,null,null,null,null,null,null,null,null,null,null,null,null,null,"PSC 47.","Locate interpretive signage at point of interests such as dune restoration sites, tribal heritage sites, habitat protection sites, and typical coastal native vegetation areas. Provide educational and recreational information on interpretive signs.​",null,null,null,null,""]
[null,null,1,null,null,null,null,null,null,null,null,null,null,null,null,null,null,null,null,null,null,null,null,null,null,null,null,null,null,null,null,"PSC 48.","Locate wayfinding signage at trail heads and boardwalk heads. Incorporate wayfinding signage in parking and marina areas as needed.​ Provide directional information on wayfinding signs.",null,null,null,null,""]
[null,null,{"$f":"IF($B$537=1,0,1)","v":1}]
[null,null,{"$f":"IF($B$537=1,0,1)","v":1}]
[null,null,{"$f":"IF($B$604=1,0,1)","v":1}]
[null,null,0,null,null,null,null,null,null,null,null,null,null,null,null,null,null,null,null,null,null,null,null,null,null,null,null,null,null,null,null,"C09 Lighting",null,"Contractor \nCompliance","Reviewer \nApproval","Contractor Comments","Reviewer Comments","Completed/\nAccepted"]
[null,null,{"$f":"IF($B$604=1,0,1)","v":1},null,null,null,null,null,null,null,null,null,null,null,null,null,null,null,null,null,null,null,null,null,null,null,null,null,null,null,null,"C09.4.3 Street Typology - Lighting Criteria​",null,"Compliance\n(Yes, No, N/A)","Approval\n(Yes, No, N/A)","Comments"]
[null,null,{"$f":"IF(AL606<>\"\",0,IF($B$604=1,0,1))","v":1},null,null,null,null,null,null,null,null,null,null,null,null,null,null,null,null,null,null,null,null,null,null,null,null,null,null,null,null,"LiC 1.","Design lighting along streets as indicated on the lighting zone map.",null,null,null,null,{"$f":"IF(OR(AI606=\"Yes\",AI606=\"N/A\"),1,IF(AI606=\"No\",0,IF(OR(AH606=\"N/A\",AH606=\"\"),\"\",IF(AH606=\"Yes\",1,))))","v":""}]
[null,null,{"$f":"IF(AL607<>\"\",0,IF($B$604=1,0,1))","v":1},null,null,null,null,null,null,null,null,null,null,null,null,null,null,null,null,null,null,null,null,null,null,null,null,null,null,null,null,"LiC 2.","Provide street-type light fixtures along all streets. Refer to luminaire specifications for light fixture style and pole heights. ",null,null,null,null,""]
[null,null,1,null,null,null,null,null,null,null,null,null,null,null,null,null,null,null,null,null,null,null,null,null,null,null,null,null,null,null,null,"LiC 3.","Use light fixtures in the Sea Turtle-Friendly Lighting Zone that meet the wavelength and color requirements. Use fixtures that have a 4000K color temperature in all other zones. ",null,null,null,null,""]
[null,null,1,null,null,null,null,null,null,null,null,null,null,null,null,null,null,null,null,null,null,null,null,null,null,null,null,null,null,null,null,"LiC 4.","Point light fixtures in the Sea Turtle-Friendly Lighting Zone away from the beach. Provide light fixtures along both sides of the street (as necessary) in other zones.",null,null,null,null,""]
[null,null,1,null,null,null,null,null,null,null,null,null,null,null,null,null,null,null,null,null,null,null,null,null,null,null,null,null,null,null,null,"C09.4.4 Sidewalk/Pathway Typology - Lighting Criteria​",null,"Compliance\n(Yes, No, N/A)","Approval\n(Yes, No, N/A)","Comments"]
[null,null,1,null,null,null,null,null,null,null,null,null,null,null,null,null,null,null,null,null,null,null,null,null,null,null,null,null,null,null,null,"LiC 5.","Provide pedestrian-scale luminaires along sidewalks. ",null,null,null,null,""]
[null,null,1,null,null,null,null,null,null,null,null,null,null,null,null,null,null,null,null,null,null,null,null,null,null,null,null,null,null,null,null,"LiC 6.","Locate bollards at crosswalks to warn pedestrians of upcoming crossings. ",null,null,null,null,""]
[null,null,1,null,null,null,null,null,null,null,null,null,null,null,null,null,null,null,null,null,null,null,null,null,null,null,null,null,null,null,null,"C09.5 Lighting Typologies Criteria​"]
[null,null,1,null,null,null,null,null,null,null,null,null,null,null,null,null,null,null,null,null,null,null,null,null,null,null,null,null,null,null,null,"C09.5.1 Streetlights Lighting Criteria​",null,"Compliance\n(Yes, No, N/A)","Approval\n(Yes, No, N/A)","Comments"]
[null,null,1,null,null,null,null,null,null,null,null,null,null,null,null,null,null,null,null,null,null,null,null,null,null,null,null,null,null,null,null,"LiC 7.","Locate streetlights on both sides of the street in the Flightline District. Single side spacing may be used on narrower streets.",null,null,null,null,""]
[null,null,1,null,null,null,null,null,null,null,null,null,null,null,null,null,null,null,null,null,null,null,null,null,null,null,null,null,null,null,null,"LiC 8.","Locate streetlights on one side of the street and face the fixtures away from the beach in other (non-Flightline) districts.",null,null,null,null,""]
[null,null,1,null,null,null,null,null,null,null,null,null,null,null,null,null,null,null,null,null,null,null,null,null,null,null,null,null,null,null,null,"LiC 9.","Install pedestrian lights on one side of each sidewalk in all districts.",null,null,null,null,""]
[null,null,1,null,null,null,null,null,null,null,null,null,null,null,null,null,null,null,null,null,null,null,null,null,null,null,null,null,null,null,null,"LiC 10.","Place pedestrian lights and streetlights 2 feet clear from the edges of sidewalks or curbs. (Facility clear zone requirements may be more restrictive.)",null,null,null,null,""]
[null,null,1,null,null,null,null,null,null,null,null,null,null,null,null,null,null,null,null,null,null,null,null,null,null,null,null,null,null,null,null,"LiC 11.","Adjust fixture and pole spacing as required to achieve uniformity and required lighting levels.",null,null,null,null,""]
[null,null,1,null,null,null,null,null,null,null,null,null,null,null,null,null,null,null,null,null,null,null,null,null,null,null,null,null,null,null,null,"LiC 12.","Align pedestrian lights with street lights when possible.",null,null,null,null,""]
[null,null,1,null,null,null,null,null,null,null,null,null,null,null,null,null,null,null,null,null,null,null,null,null,null,null,null,null,null,null,null,"C09.5.2 Lighting Criteria for ECFs​",null,"Compliance\n(Yes, No, N/A)","Approval\n(Yes, No, N/A)","Comments"]
[null,null,1,null,null,null,null,null,null,null,null,null,null,null,null,null,null,null,null,null,null,null,null,null,null,null,null,null,null,null,null,"LiC 13.","Provide lighting consistent with the lighting zones defined in UFC 4-022-01 and as required within the ECFs.",null,null,null,null,""]
[null,null,1,null,null,null,null,null,null,null,null,null,null,null,null,null,null,null,null,null,null,null,null,null,null,null,null,null,null,null,null,"LiC 14.","Provide streetlight-style fixtures.",null,null,null,null,""]
[null,null,1,null,null,null,null,null,null,null,null,null,null,null,null,null,null,null,null,null,null,null,null,null,null,null,null,null,null,null,null,"LiC 15.","Augment UFC-compliant automated exterior lighting control(s) located within guard houses to include a Defender-operated override, capable of providing manual activation of the exterior lighting system during dawn, dusk, nighttime, heavily overcast periods, and/or high glare times of the day, as well as any Defender-defined period of operation. Limit Defender operation to on/off, affecting the measure of illumination. In addition, the control will allow fixtures in each zone to be fully dimmable. When facility is not in use, controls default to a pre-programed facility non-operational status.",null,null,null,null,""]
[null,null,1,null,null,null,null,null,null,null,null,null,null,null,null,null,null,null,null,null,null,null,null,null,null,null,null,null,null,null,null,"LiC 16.","Design light fixtures to be 4000K in color temperature, even if the lights fall within the Sea Turtle-Friendly Lighting Zone. ",null,null,null,null,""]
[null,null,1,null,null,null,null,null,null,null,null,null,null,null,null,null,null,null,null,null,null,null,null,null,null,null,null,null,null,null,null,"LiC 17.","Adhere to the lighting requirements defined in the SDDCTEA Pamphlet 55-15, Traffic and Safety Engineering for Better Entry Control Facilities and governing UFC for all ECF Zones located in the Sea Turtle- Friendly Lighting Zone (Support District). Though lighting ECF requirements take precedence over turtle-friendly lighting, the lighting designer must minimize the imposition of any deleterious light into the surrounding turtle-friendly area without degrading the ECF’s mission- required lighting.",null,null,null,null,""]
[null,null,1,null,null,null,null,null,null,null,null,null,null,null,null,null,null,null,null,null,null,null,null,null,null,null,null,null,null,null,null,"LiC 18.","All light fixtures used in the ECF must have a minimum color rendering index (CRI) of 80.",null,null,null,null,""]
[null,null,1,null,null,null,null,null,null,null,null,null,null,null,null,null,null,null,null,null,null,null,null,null,null,null,null,null,null,null,null,"C09.5.3 Lighting Criteria for Parking Areas​",null,"Compliance\n(Yes, No, N/A)","Approval\n(Yes, No, N/A)","Comments"]
[null,null,1,null,null,null,null,null,null,null,null,null,null,null,null,null,null,null,null,null,null,null,null,null,null,null,null,null,null,null,null,"LiC 19.","Use streetlight-style fixtures in all parking areas. ",null,null,null,null,""]
[null,null,1,null,null,null,null,null,null,null,null,null,null,null,null,null,null,null,null,null,null,null,null,null,null,null,null,null,null,null,null,"LiC 20.","Use wall-mounted lights at building entries. Follow UFC 3-530-01 for lighting requirements. ",null,null,null,null,""]
[null,null,1,null,null,null,null,null,null,null,null,null,null,null,null,null,null,null,null,null,null,null,null,null,null,null,null,null,null,null,null,"LiC 21.","Refer to Section C09.5.1, Luminaire Specifications, for light fixture style and pole heights. ",null,null,null,null,""]
[null,null,1,null,null,null,null,null,null,null,null,null,null,null,null,null,null,null,null,null,null,null,null,null,null,null,null,null,null,null,null,"LiC 22.","Use light fixtures in the Sea Turtle-Friendly Lighting Zone that are amber in color. Use fixtures that have a 4000K color temperature in all other zones. ",null,null,null,null,""]
[null,null,1,null,null,null,null,null,null,null,null,null,null,null,null,null,null,null,null,null,null,null,null,null,null,null,null,null,null,null,null,"LiC 23.","Place light fixtures in the Sea Turtle-Friendly Lighting Zone such that the light source is always pointed away from the beach. ",null,null,null,null,""]
[null,null,1,null,null,null,null,null,null,null,null,null,null,null,null,null,null,null,null,null,null,null,null,null,null,null,null,null,null,null,null,"LiC 24.","Anchor lights around parking lots should using a 30-inch pedestal to avoid damage from vehicles. ",null,null,null,null,""]
[null,null,1,null,null,null,null,null,null,null,null,null,null,null,null,null,null,null,null,null,null,null,null,null,null,null,null,null,null,null,null,"C09.5.4 Lighting Criteria for CDCs​",null,"Compliance\n(Yes, No, N/A)","Approval\n(Yes, No, N/A)","Comments"]
[null,null,1,null,null,null,null,null,null,null,null,null,null,null,null,null,null,null,null,null,null,null,null,null,null,null,null,null,null,null,null,"LiC 25.","Comply with all exterior lighting requirements detailed in UFC 4-740-14, Design: Child Development Centers. ",null,null,null,null,""]
[null,null,1,null,null,null,null,null,null,null,null,null,null,null,null,null,null,null,null,null,null,null,null,null,null,null,null,null,null,null,null,"LiC 26.","Provide lighting fixtures that are 5 foot-candles average at all CDC driveways, walkways, and parking areas and that have photocell controls to turn lights on at sunset and off at sunrise. ",null,null,null,null,""]
[null,null,1,null,null,null,null,null,null,null,null,null,null,null,null,null,null,null,null,null,null,null,null,null,null,null,null,null,null,null,null,"C09.5.5 No Lighting Zone​",null,"Compliance\n(Yes, No, N/A)","Approval\n(Yes, No, N/A)","Comments"]
[null,null,1,null,null,null,null,null,null,null,null,null,null,null,null,null,null,null,null,null,null,null,null,null,null,null,null,null,null,null,null,"LiC 27.","Do not provide lighting in the No Lighting Zone.",null,null,null,null,""]
[null,null,1,null,null,null,null,null,null,null,null,null,null,null,null,null,null,null,null,null,null,null,null,null,null,null,null,null,null,null,null,"C09.6 Lighting Elements - Luminaire Specifications​"]
[null,null,1,null,null,null,null,null,null,null,null,null,null,null,null,null,null,null,null,null,null,null,null,null,null,null,null,null,null,null,null,"C09.6.2 Streetlighting ​",null,"Compliance\n(Yes, No, N/A)","Approval\n(Yes, No, N/A)","Comments"]
[null,null,1,null,null,null,null,null,null,null,null,null,null,null,null,null,null,null,null,null,null,null,null,null,null,null,null,null,null,null,null,"LiC 28.","Pole: Round, tapered aluminum pole, direct-bury, tenon top breakaway pole, bronze powder coat finish, with a 20-foot mounting height for use in the Support District and a 30-foot mounting height for use in the Flightline District. Use Hapco #RTA Pole or equivalent.",null,null,null,null,""]
[null,null,1,null,null,null,null,null,null,null,null,null,null,null,null,null,null,null,null,null,null,null,null,null,null,null,null,null,null,null,null,"LiC 29.","Arm: Aluminum, 4-foot up-sweep streetlight arm, bronze powder coat finish. Use Action Manufacturing AMI-196-A or equivalent.",null,null,null,null,""]
[null,null,1,null,null,null,null,null,null,null,null,null,null,null,null,null,null,null,null,null,null,null,null,null,null,null,null,null,null,null,null,"LiC 30.","Luminaire: AEL Autobahn Fixture #ATB2-xxLEDxx-MVOLT-P7 with bronze finish and 7-pin receptacle. LED lamps must be turtle-friendly in the Support District and 4000K color temperature in the Flightline District. ",null,null,null,null,""]
[null,null,1,null,null,null,null,null,null,null,null,null,null,null,null,null,null,null,null,null,null,null,null,null,null,null,null,null,null,null,null,"C09.6.3 Pedestrian Lighting ​",null,"Compliance\n(Yes, No, N/A)","Approval\n(Yes, No, N/A)","Comments"]
[null,null,1,null,null,null,null,null,null,null,null,null,null,null,null,null,null,null,null,null,null,null,null,null,null,null,null,null,null,null,null,"LiC 31.","Pole: Round, tapered aluminum pole, direct-bury, tenon top breakaway pole, bronze finish, with a 10-foot mounting height. Hapco #RTA pole or equivalent.",null,null,null,null,""]
[null,null,1,null,null,null,null,null,null,null,null,null,null,null,null,null,null,null,null,null,null,null,null,null,null,null,null,null,null,null,null,"LiC 32.","Luminaire: Decorative post top, Invue Arbor #ARB xx LED D1 AP PER7, with bronze finish and 7-pin receptacle. LED lamps must be turtle-friendly in the Support District and 4000K color temperature in the Flightline District. ",null,null,null,null,""]
[null,null,1,null,null,null,null,null,null,null,null,null,null,null,null,null,null,null,null,null,null,null,null,null,null,null,null,null,null,null,null,"C09.6.4 Bollards​",null,"Compliance\n(Yes, No, N/A)","Approval\n(Yes, No, N/A)","Comments"]
[null,null,1,null,null,null,null,null,null,null,null,null,null,null,null,null,null,null,null,null,null,null,null,null,null,null,null,null,null,null,null,"LiC 33.","Decorative 36-inch with a gray finish. LED lamps must be amber in the Support District and 4000K color temperature in the Flightline District.",null,null,null,null,""]
[null,null,1,null,null,null,null,null,null,null,null,null,null,null,null,null,null,null,null,null,null,null,null,null,null,null,null,null,null,null,null,"LiC 34.","Use Invue Arbor #ABB xx LED 36 xx Taman’s D1 A AP.",null,null,null,null,""]
[null,null,1,null,null,null,null,null,null,null,null,null,null,null,null,null,null,null,null,null,null,null,null,null,null,null,null,null,null,null,null,"C09.6.5 Parking Area Lighting​",null,"Compliance\n(Yes, No, N/A)","Approval\n(Yes, No, N/A)","Comments"]
[null,null,1,null,null,null,null,null,null,null,null,null,null,null,null,null,null,null,null,null,null,null,null,null,null,null,null,null,null,null,null,"LiC 35.","Pole: Round, tapered aluminum pole, direct-bury, tenon top pole, bronze powder coat finish, with a 20-foot mounting height for use in the Support District and a 30-foot mounting height for use in the Flightline District. Hapco #RTA pole or equivalent. Alternately, use a 4-bolt anchor base-type pole, tenon top, dark bronze finish. ",null,null,null,null,""]
[null,null,1,null,null,null,null,null,null,null,null,null,null,null,null,null,null,null,null,null,null,null,null,null,null,null,null,null,null,null,null,"LiC 36.","Single Arm: Aluminum, single, horizontal, tenon top bracket bronze powder coat, Action Manufacturing AMI-21-A or equivalent.",null,null,null,null,""]
[null,null,1,null,null,null,null,null,null,null,null,null,null,null,null,null,null,null,null,null,null,null,null,null,null,null,null,null,null,null,null,"LiC 37.","Double Arm: Aluminum, double, horizontal, tenon top bracket bronze powder coat, Action Manufacturing AMI-22-A or equivalent.",null,null,null,null,""]
[null,null,1,null,null,null,null,null,null,null,null,null,null,null,null,null,null,null,null,null,null,null,null,null,null,null,null,null,null,null,null,"LiC 38.","Luminaire: AEL Autobahn Fixture #ATB2-xxLEDxx-MVOLT-BZ-P7 with bronze finish and a 7-pin receptacle. LED lamps must be turtle-friendly in the Support District and 4000K color temperature in the Flightline District. ",null,null,null,null,""]
[null,null,1,null,null,null,null,null,null,null,null,null,null,null,null,null,null,null,null,null,null,null,null,null,null,null,null,null,null,null,null,"C09.6.6 General Light Fixture Requirements​",null,"Compliance\n(Yes, No, N/A)","Approval\n(Yes, No, N/A)","Comments"]
[null,null,1,null,null,null,null,null,null,null,null,null,null,null,null,null,null,null,null,null,null,null,null,null,null,null,null,null,null,null,null,"LiC 39.","Provide optics suitable for application. All fixtures, poles, and arms must be bronze finish and bollards to be gray finish. All poles must be rated to withstand 170-mile-per-hour winds. ",null,null,null,null,""]
[null,null,0]
[null,null,0]
[]
["C01 Site",null,null,"C02 Utilities",null,null,"C03 Parking",null,null,"C04 Stormwater",null,null,"C05 Sidewalks",null,null,"C06 Landscape",null,null,"C07 Site Furnishings",null,null,"C08 Signs",null,null,"C09 Lighting"]
[]
["Yes",{"$f":"COUNTIF(AH48:AH107,\"Yes\")/$A$669","v":0},{"$f":"COUNTIF(AI48:AI107,\"Yes\")/$A$669","v":0},null,{"$f":"COUNTIF(AH108:AH130,\"Yes\")/$D$669","v":0},{"$f":"COUNTIF(AI108:AI130,\"Yes\")/$D$669","v":0},null,{"$f":"COUNTIF(AH133:AH152,\"Yes\")/$G$669","v":0},{"$f":"COUNTIF(AI133:AI152,\"Yes\")/$G$669","v":0},null,{"$f":"COUNTIF(AH158:AH206,\"Yes\")/$J$669","v":0},{"$f":"COUNTIF(AI158:AI206,\"Yes\")/$J$669","v":0},null,{"$f":"COUNTIF($AH$212:$AH$369,\"Yes\")/$M$669","v":0},{"$f":"COUNTIF($AI$212:$AI$369,\"Yes\")/$M$669","v":0},null,{"$f":"COUNTIF(AH374:AH453,\"Yes\")/$P$669","v":0},{"$f":"COUNTIF(AI374:AI453,\"Yes\")/$P$669","v":0},null,{"$f":"COUNTIF(AH459:AH533,\"Yes\")/$S$669","v":0},{"$f":"COUNTIF(AI459:AI533,\"Yes\")/$S$669","v":0},null,{"$f":"COUNTIF(AH539:AH600,\"Yes\")/$V$669","v":0},{"$f":"COUNTIF(AI539:AI600,\"Yes\")/$V$669","v":0},null,{"$f":"COUNTIF(AH606:AH657,\"Yes\")/$Y$669","v":0},{"$f":"COUNTIF(AI606:AI657,\"Yes\")/$Y$669","v":0}]
["No",{"$f":"COUNTIF(AH48:AH107,\"No\")/$A$669","v":0},{"$f":"COUNTIF(AI48:AI107,\"No\")/$A$669","v":0},null,{"$f":"COUNTIF(AH108:AH130,\"No\")/$D$669","v":0},{"$f":"COUNTIF(AI108:AI130,\"No\")/$D$669","v":0},null,{"$f":"COUNTIF(AH133:AH152,\"No\")/$G$669","v":0},{"$f":"COUNTIF(AI133:AI152,\"No\")/$G$669","v":0},null,{"$f":"COUNTIF(AH158:AH206,\"No\")/$J$669","v":0},{"$f":"COUNTIF(AI158:AI206,\"No\")/$J$669","v":0},null,{"$f":"COUNTIF($AH$212:$AH$369,\"No\")/$M$669","v":0},{"$f":"COUNTIF($AI$212:$AI$369,\"No\")/$M$669","v":0},null,{"$f":"COUNTIF(AH374:AH453,\"No\")/$P$669","v":0},{"$f":"COUNTIF(AI374:AI453,\"No\")/$P$669","v":0},null,{"$f":"COUNTIF(AH459:AH533,\"No\")/$S$669","v":0},{"$f":"COUNTIF(AI459:AI533,\"No\")/$S$669","v":0},null,{"$f":"COUNTIF(AH539:AH600,\"No\")/$V$669","v":0},{"$f":"COUNTIF(AI539:AI600,\"No\")/$V$669","v":0},null,{"$f":"COUNTIF(AH606:AH657,\"No\")/$Y$669","v":0},{"$f":"COUNTIF(AI606:AI657,\"No\")/$Y$669","v":0}]
["N/A",{"$f":"COUNTIF(AH48:AH107,\"N/A\")/$A$669","v":0},{"$f":"COUNTIF(AI48:AI107,\"N/A\")/$A$669","v":0},null,{"$f":"COUNTIF(AH108:AH130,\"N/A\")/$D$669","v":0},{"$f":"COUNTIF(AI108:AI130,\"N/A\")/$D$669","v":0},null,{"$f":"COUNTIF(AH133:AH152,\"N/A\")/$G$669","v":0},{"$f":"COUNTIF(AI133:AI152,\"N/A\")/$G$669","v":0},null,{"$f":"COUNTIF(AH158:AH206,\"N/A\")/$J$669","v":0},{"$f":"COUNTIF(AI158:AI206,\"N/A\")/$J$669","v":0},null,{"$f":"COUNTIF($AH$212:$AH$369,\"N/A\")/$M$669","v":0},{"$f":"COUNTIF($AI$212:$AI$369,\"N/A\")/$M$669","v":0},null,{"$f":"COUNTIF(AH374:AH453,\"N/A\")/$P$669","v":0},{"$f":"COUNTIF(AI374:AI453,\"N/A\")/$P$669","v":0},null,{"$f":"COUNTIF(AH459:AH533,\"N/A\")/$S$669","v":0},{"$f":"COUNTIF(AI459:AI533,\"N/A\")/$S$669","v":0},null,{"$f":"COUNTIF(AH539:AH600,\"N/A\")/$V$669","v":0},{"$f":"COUNTIF(AI539:AI600,\"N/A\")/$V$669","v":0},null,{"$f":"COUNTIF(AH606:AH657,\"N/A\")/$Y$669","v":0},{"$f":"COUNTIF(AI606:AI657,\"N/A\")/$Y$669","v":0}]
[]
[null,"Complete","Approved",null,"Complete","Approved",null,"Complete","Approved",null,"Complete","Approved",null,"Complete","Approved",null,"Complete","Approved",null,"Complete","Approved",null,"Complete","Approved",null,"Complete","Approved"]
["C01",null,null,"C02",null,null,"C03",null,null,"C04",null,null,"C05",null,null,"C06",null,null,"C07",null,null,"C08",null,null,"C09"]
[{"$f":"COUNTA(AG48:AG107)","v":45},null,null,{"$f":"COUNTA(AG108:AG130)","v":15},null,null,{"$f":"COUNTA(AG133:AG152)","v":19},null,null,{"$f":"COUNTA(AG158:AG206)","v":40},null,null,{"$f":"COUNTA(AG212:AG369)","v":126},null,null,{"$f":"COUNTA(AG374:AG453)","v":61},null,null,{"$f":"COUNTA(AG459:AG533)","v":64},null,null,{"$f":"COUNTA(AG539:AG600)","v":48},null,null,{"$f":"COUNTA(AG606:AG657)","v":39}]